{"text_format":"1","workbook":"xlsx","n_sheets":3,"sheets":["plan PTSz SP","punkty ECTS","analiza"],"not_rendered":{"charts":0,"images":4,"macros":1,"external_links":0,"defined_names":1,"comments":1,"pivot_tables":0},"unopened":[],"bounds":{"document_bytes":16777216,"sheet_cells":100000,"rows_first":2000,"rows_last":500,"rows_between":2000,"halvings":0,"cell_chars":16384,"cell_head_chars":4096},"cells_cut":0,"cells_raw":0,"read":"whole","date_system":"1900"}

{"sheet":"plan PTSz SP","index":0,"n_rows":291,"n_cols":41,"rows_kept":291,"cut":false,"hidden":false,"merged":[[263,1,263,2],[268,1,268,2],[250,1,250,2],[251,1,251,2],[252,1,252,2],[253,1,253,2],[254,1,254,2],[255,1,255,2],[256,1,256,2],[257,1,257,2],[258,1,258,2],[267,1,267,2],[196,1,196,2],[200,1,200,2],[239,1,239,2],[242,1,242,2],[245,1,245,2],[249,1,249,2],[223,0,223,2],[231,0,231,2],[238,1,238,2],[224,0,224,2],[226,0,226,2],[227,0,227,2],[228,0,228,2],[233,0,237,0],[233,1,237,2],[229,0,229,2],[185,1,185,2],[186,1,186,2],[187,1,187,2],[188,1,188,2],[189,1,189,2],[190,1,190,2],[191,1,191,2],[194,1,194,2],[195,1,195,2],[121,1,121,2],[124,1,124,2],[125,1,125,2],[126,1,126,2],[125,35,125,38],[124,19,124,22],[124,23,124,26],[124,27,124,30],[124,31,124,34],[124,35,124,38],[16,1,16,2],[17,1,17,2],[18,1,18,2],[19,1,19,2],[20,1,20,2],[21,1,21,2],[22,1,22,2],[62,1,62,2],[64,1,64,2],[46,0,46,2],[50,0,50,2],[6,27,6,38],[0,0,0,2],[0,3,1,26],[0,27,0,38],[1,0,1,2],[1,27,1,38],[3,0,3,2],[3,27,3,38],[4,0,4,2],[10,0,14,0],[10,1,14,2],[10,3,11,5],[10,6,10,10],[4,27,4,38],[5,0,5,2],[5,27,5,38],[8,0,8,2],[8,27,8,38],[6,0,6,2],[10,11,10,38],[11,6,14,6],[11,7,11,10],[11,11,11,14],[11,23,11,26],[11,27,11,30],[11,31,11,34],[11,35,11,38],[12,8,14,8],[12,9,14,9],[12,3,14,3],[12,4,14,4],[12,5,14,5],[12,7,14,7],[13,15,14,15],[13,16,14,16],[11,15,11,18],[11,19,11,22],[13,29,14,29],[13,30,14,30],[13,19,14,19],[13,20,14,20],[13,21,14,21],[13,22,14,22],[13,23,14,23],[13,24,14,24],[15,1,15,2],[15,3,15,4],[15,7,15,10],[15,11,15,38],[13,25,14,25],[13,26,14,26],[13,27,14,27],[13,28,14,28],[13,17,14,17],[13,18,14,18],[13,37,14,37],[13,38,14,38],[13,31,14,31],[13,32,14,32],[13,33,14,33],[13,34,14,34],[13,35,14,35],[13,36,14,36],[12,10,14,10],[12,11,12,38],[13,11,14,11],[13,12,14,12],[13,13,14,13],[13,14,14,14],[24,10,25,10],[25,11,25,14],[25,15,25,18],[23,1,23,2],[24,1,25,2],[24,3,25,3],[24,4,25,4],[24,5,25,5],[24,6,25,6],[26,6,28,6],[26,7,28,7],[24,7,25,7],[24,8,25,8],[26,8,28,8],[25,27,25,30],[25,31,25,34],[25,35,25,38],[25,19,25,22],[27,25,28,25],[26,31,26,34],[27,26,28,26],[26,27,26,30],[27,33,28,33],[26,35,26,38],[26,15,26,18],[26,19,26,22],[27,27,28,27],[27,28,28,28],[27,29,28,29],[27,30,28,30],[27,31,28,31],[27,32,28,32],[24,9,25,9],[26,11,26,14],[26,23,26,26],[27,21,28,21],[27,22,28,22],[27,11,28,11],[27,12,28,12],[27,13,28,13],[27,14,28,14],[27,15,28,15],[27,16,28,16],[27,34,28,34],[27,35,28,35],[27,36,28,36],[30,19,30,22],[30,23,30,26],[30,31,30,34],[30,35,30,38],[27,24,28,24],[27,37,28,37],[27,38,28,38],[27,23,28,23],[27,19,28,19],[27,20,28,20],[29,10,30,10],[30,11,30,14],[30,15,30,18],[30,27,30,30],[29,6,30,6],[29,7,30,7],[29,8,30,8],[29,9,30,9],[31,23,31,26],[31,27,31,30],[32,27,32,30],[33,31,33,34],[33,35,33,38],[45,27,45,38],[31,31,31,34],[31,35,31,38],[31,6,31,10],[31,11,31,14],[31,15,31,18],[31,19,31,22],[32,31,32,34],[32,35,32,38],[32,6,32,10],[32,11,32,14],[32,15,32,18],[32,19,32,22],[41,2,41,17],[41,29,41,37],[31,3,33,5],[46,3,47,26],[46,27,46,38],[47,0,47,2],[47,27,47,38],[33,6,33,10],[33,11,33,14],[49,0,49,2],[49,27,49,38],[33,15,33,18],[33,19,33,22],[33,23,33,26],[33,27,33,30],[26,0,33,2],[26,3,28,3],[26,4,28,4],[26,5,28,5],[29,3,30,3],[29,4,30,4],[29,5,30,5],[27,17,28,17],[27,18,28,18],[26,9,28,9],[26,10,28,10],[32,23,32,26],[50,27,50,38],[51,0,51,2],[51,27,51,38],[52,0,52,2],[52,27,52,38],[54,0,54,2],[54,27,54,38],[56,11,56,38],[56,0,60,0],[56,1,60,2],[56,3,57,5],[56,6,56,10],[57,7,57,10],[59,22,60,22],[59,11,60,11],[59,12,60,12],[59,27,60,27],[57,35,57,38],[58,3,60,3],[58,4,60,4],[58,5,60,5],[58,7,60,7],[58,8,60,8],[58,9,60,9],[58,10,60,10],[58,11,58,38],[59,21,60,21],[59,13,60,13],[59,14,60,14],[59,15,60,15],[59,16,60,16],[59,17,60,17],[59,18,60,18],[59,19,60,19],[59,20,60,20],[59,33,60,33],[59,34,60,34],[59,23,60,23],[59,24,60,24],[59,25,60,25],[59,26,60,26],[59,29,60,29],[59,30,60,30],[59,31,60,31],[59,32,60,32],[61,11,61,38],[59,35,60,35],[59,36,60,36],[59,37,60,37],[59,38,60,38],[69,1,70,2],[69,3,70,3],[69,4,70,4],[69,5,70,5],[69,10,70,10],[70,11,70,14],[70,15,70,18],[70,19,70,22],[70,23,70,26],[70,31,70,34],[70,35,70,38],[57,6,60,6],[57,23,57,26],[57,27,57,30],[57,11,57,14],[57,15,57,18],[57,19,57,22],[57,31,57,34],[59,28,60,28],[69,8,70,8],[69,9,70,9],[69,6,70,6],[69,7,70,7],[71,8,73,8],[71,9,73,9],[71,10,73,10],[61,1,61,2],[61,3,61,4],[61,7,61,10],[63,1,63,2],[65,1,65,2],[66,1,66,2],[67,1,67,2],[68,1,68,2],[70,27,70,30],[72,17,73,17],[72,18,73,18],[72,19,73,19],[72,20,73,20],[71,15,71,18],[71,19,71,22],[72,25,73,25],[71,11,71,14],[71,31,71,34],[71,35,71,38],[72,11,73,11],[72,12,73,12],[72,13,73,13],[72,14,73,14],[72,15,73,15],[72,16,73,16],[72,26,73,26],[72,35,73,35],[72,36,73,36],[71,23,71,26],[71,27,71,30],[72,21,73,21],[72,22,73,22],[72,23,73,23],[72,24,73,24],[72,29,73,29],[72,30,73,30],[72,37,73,37],[72,38,73,38],[72,27,73,27],[72,28,73,28],[72,31,73,31],[72,32,73,32],[72,33,73,33],[72,34,73,34],[75,27,75,30],[75,19,75,22],[75,23,75,26],[76,23,76,26],[76,27,76,30],[76,31,76,34],[78,35,78,38],[76,35,76,38],[76,6,76,10],[76,11,76,14],[76,15,76,18],[76,19,76,22],[75,31,75,34],[75,35,75,38],[74,10,75,10],[75,11,75,14],[75,15,75,18],[74,6,75,6],[74,7,75,7],[74,8,75,8],[74,9,75,9],[77,15,77,18],[77,19,77,22],[78,15,78,18],[78,19,78,22],[78,23,78,26],[78,27,78,30],[77,23,77,26],[77,27,77,30],[78,31,78,34],[90,27,90,38],[91,0,91,2],[91,3,92,26],[91,27,91,38],[92,0,92,2],[92,27,92,38],[78,6,78,10],[78,11,78,14],[94,0,94,2],[94,27,94,38],[71,0,78,2],[71,3,73,3],[71,4,73,4],[71,5,73,5],[74,3,75,3],[74,4,75,4],[74,5,75,5],[76,3,78,5],[71,6,73,6],[71,7,73,7],[77,31,77,34],[77,35,77,38],[77,6,77,10],[77,11,77,14],[95,0,95,2],[95,27,95,38],[96,0,96,2],[96,27,96,38],[97,0,97,2],[97,27,97,38],[99,0,99,2],[99,27,99,38],[101,11,101,38],[102,31,102,34],[101,0,105,0],[101,1,105,2],[101,3,102,5],[101,6,101,10],[102,7,102,10],[104,22,105,22],[104,11,105,11],[104,12,105,12],[104,27,105,27],[104,28,105,28],[104,29,105,29],[104,30,105,30],[104,31,105,31],[104,32,105,32],[102,35,102,38],[103,3,105,3],[103,4,105,4],[103,5,105,5],[103,7,105,7],[103,8,105,8],[103,9,105,9],[103,10,105,10],[103,11,103,38],[104,21,105,21],[104,13,105,13],[104,14,105,14],[104,15,105,15],[104,16,105,16],[104,17,105,17],[104,18,105,18],[104,19,105,19],[104,20,105,20],[104,33,105,33],[104,34,105,34],[104,23,105,23],[104,24,105,24],[104,25,105,25],[104,26,105,26],[106,11,106,38],[104,35,105,35],[104,36,105,36],[104,37,105,37],[104,38,105,38],[127,1,128,2],[127,3,128,3],[127,4,128,4],[127,5,128,5],[127,10,128,10],[128,11,128,14],[128,15,128,18],[128,19,128,22],[128,23,128,26],[128,31,128,34],[128,35,128,38],[122,1,122,2],[123,1,123,2],[102,6,105,6],[102,23,102,26],[102,27,102,30],[102,11,102,14],[102,15,102,18],[102,19,102,22],[127,8,128,8],[127,9,128,9],[127,6,128,6],[127,7,128,7],[129,8,131,8],[129,9,131,9],[129,10,131,10],[106,1,106,2],[106,3,106,4],[106,7,106,10],[107,1,107,2],[108,1,108,2],[109,1,109,2],[110,1,110,2],[111,1,111,2],[112,1,112,2],[113,1,113,2],[114,1,114,2],[115,1,115,2],[116,1,116,2],[117,1,117,2],[118,1,118,2],[119,1,119,2],[120,1,120,2],[128,27,128,30],[130,17,131,17],[130,18,131,18],[130,19,131,19],[130,20,131,20],[129,15,129,18],[129,19,129,22],[130,25,131,25],[129,11,129,14],[129,31,129,34],[129,35,129,38],[130,11,131,11],[130,12,131,12],[130,13,131,13],[130,14,131,14],[130,15,131,15],[130,16,131,16],[130,26,131,26],[130,35,131,35],[130,36,131,36],[129,23,129,26],[129,27,129,30],[130,21,131,21],[130,22,131,22],[130,23,131,23],[130,24,131,24],[130,29,131,29],[130,30,131,30],[130,37,131,37],[130,38,131,38],[130,27,131,27],[130,28,131,28],[130,31,131,31],[130,32,131,32],[130,33,131,33],[130,34,131,34],[133,27,133,30],[133,19,133,22],[133,23,133,26],[134,23,134,26],[134,27,134,30],[134,31,134,34],[134,6,134,10],[134,11,134,14],[134,15,134,18],[134,19,134,22],[133,31,133,34],[133,35,133,38],[132,10,133,10],[133,11,133,14],[133,15,133,18],[132,6,133,6],[132,7,133,7],[132,8,133,8],[132,9,133,9],[135,15,135,18],[135,19,135,22],[136,15,136,18],[136,19,136,22],[136,23,136,26],[136,27,136,30],[135,23,135,26],[135,27,135,30],[134,35,134,38],[149,0,149,2],[149,3,150,26],[149,27,149,38],[150,0,150,2],[150,27,150,38],[136,31,136,34],[136,35,136,38],[148,27,148,38],[136,6,136,10],[136,11,136,14],[129,0,136,2],[129,3,131,3],[129,4,131,4],[129,5,131,5],[132,3,133,3],[132,4,133,4],[132,5,133,5],[134,3,136,5],[129,6,131,6],[129,7,131,7],[135,31,135,34],[135,35,135,38],[135,6,135,10],[135,11,135,14],[152,0,152,2],[152,27,152,38],[153,0,153,2],[153,27,153,38],[154,0,154,2],[154,27,154,38],[155,0,155,2],[155,27,155,38],[157,0,157,2],[157,27,157,38],[159,11,159,38],[160,6,163,6],[160,23,160,26],[160,27,160,30],[160,11,160,14],[160,15,160,18],[160,19,160,22],[160,31,160,34],[159,0,163,0],[159,1,163,2],[159,3,160,5],[159,6,159,10],[160,7,160,10],[162,22,163,22],[162,11,163,11],[162,12,163,12],[160,35,160,38],[161,3,163,3],[161,4,163,4],[161,5,163,5],[161,7,163,7],[161,8,163,8],[161,9,163,9],[161,10,163,10],[161,11,161,38],[162,21,163,21],[162,13,163,13],[162,14,163,14],[162,15,163,15],[162,16,163,16],[162,17,163,17],[162,18,163,18],[162,19,163,19],[162,20,163,20],[162,33,163,33],[162,34,163,34],[162,23,163,23],[162,24,163,24],[162,25,163,25],[162,26,163,26],[162,27,163,27],[162,28,163,28],[162,29,163,29],[162,30,163,30],[162,31,163,31],[162,32,163,32],[164,1,164,2],[164,3,164,4],[164,7,164,10],[164,11,164,38],[162,35,163,35],[162,36,163,36],[162,37,163,37],[162,38,163,38],[201,1,202,2],[201,3,202,3],[201,4,202,4],[201,5,202,5],[201,10,202,10],[202,11,202,14],[202,15,202,18],[202,19,202,22],[202,23,202,26],[202,31,202,34],[202,35,202,38],[165,1,165,2],[169,1,169,2],[173,1,173,2],[177,1,177,2],[181,1,181,2],[206,5,207,5],[208,3,210,5],[202,27,202,30],[204,17,205,17],[204,18,205,18],[204,19,205,19],[204,20,205,20],[203,15,203,18],[203,19,203,22],[204,25,205,25],[203,11,203,14],[206,10,207,10],[207,11,207,14],[207,15,207,18],[206,6,207,6],[206,7,207,7],[206,8,207,8],[206,9,207,9],[203,6,205,6],[203,7,205,7],[201,8,202,8],[201,9,202,9],[201,6,202,6],[201,7,202,7],[203,35,203,38],[204,11,205,11],[204,12,205,12],[204,13,205,13],[204,14,205,14],[204,15,205,15],[204,16,205,16],[204,26,205,26],[204,35,205,35],[204,36,205,36],[203,23,203,26],[203,27,203,30],[204,21,205,21],[204,22,205,22],[204,23,205,23],[204,24,205,24],[204,29,205,29],[204,30,205,30],[204,37,205,37],[204,38,205,38],[204,27,205,27],[204,28,205,28],[204,31,205,31],[204,33,205,33],[204,34,205,34],[207,27,207,30],[207,19,207,22],[207,23,207,26],[208,23,208,26],[208,27,208,30],[208,31,208,34],[203,8,205,8],[203,9,205,9],[203,10,205,10],[203,31,203,34],[210,23,210,26],[203,0,210,2],[203,3,205,3],[203,4,205,4],[203,5,205,5],[206,3,207,3],[206,4,207,4],[208,35,208,38],[208,6,208,10],[208,11,208,14],[208,15,208,18],[208,19,208,22],[207,31,207,34],[207,35,207,38],[209,23,209,26],[209,27,209,30],[209,31,209,34],[209,35,209,38],[210,31,210,34],[209,6,209,10],[209,11,209,14],[209,15,209,18],[209,19,209,22],[204,32,205,32],[236,29,237,29],[236,22,237,22],[236,11,237,11],[236,12,237,12],[210,35,210,38],[222,27,222,38],[210,27,210,30],[229,27,229,38],[234,35,234,38],[231,27,231,38],[233,11,233,38],[223,3,224,26],[223,27,223,38],[226,27,226,38],[227,27,227,38],[233,3,234,5],[233,6,233,10],[234,7,234,10],[228,27,228,38],[224,27,224,38],[210,6,210,10],[210,11,210,14],[210,15,210,18],[210,19,210,22],[238,3,238,4],[238,7,238,10],[238,11,238,38],[236,35,237,35],[236,36,237,36],[236,37,237,37],[234,6,237,6],[234,23,234,26],[234,27,234,30],[235,9,237,9],[235,10,237,10],[235,3,237,3],[235,4,237,4],[235,5,237,5],[234,11,234,14],[234,15,234,18],[234,19,234,22],[234,31,234,34],[235,7,237,7],[235,8,237,8],[236,26,237,26],[235,11,235,38],[236,23,237,23],[236,14,237,14],[270,35,270,38],[270,27,270,30],[270,19,270,22],[236,38,237,38],[269,10,270,10],[270,11,270,14],[270,15,270,18],[236,30,237,30],[236,31,237,31],[236,32,237,32],[236,33,237,33],[236,34,237,34],[236,27,237,27],[236,28,237,28],[236,13,237,13],[236,24,237,24],[236,25,237,25],[236,21,237,21],[236,20,237,20],[236,15,237,15],[236,16,237,16],[236,17,237,17],[236,18,237,18],[236,19,237,19],[269,1,270,2],[269,3,270,3],[269,4,270,4],[270,23,270,26],[269,5,270,5],[269,6,270,6],[270,31,270,34],[271,0,278,2],[271,3,273,3],[271,4,273,4],[271,5,273,5],[274,3,275,3],[274,4,275,4],[274,5,275,5],[276,3,278,5],[271,6,273,6],[269,7,270,7],[269,8,270,8],[269,9,270,9],[271,7,273,7],[271,8,273,8],[271,9,273,9],[271,11,271,14],[271,15,271,18],[271,27,271,30],[272,26,273,26],[272,11,273,11],[272,12,273,12],[272,13,273,13],[272,14,273,14],[272,23,273,23],[272,24,273,24],[272,25,273,25],[272,17,273,17],[272,15,273,15],[272,29,273,29],[272,30,273,30],[272,19,273,19],[272,20,273,20],[272,21,273,21],[272,27,273,27],[272,28,273,28],[271,19,271,22],[274,7,275,7],[272,38,273,38],[272,31,273,31],[272,32,273,32],[272,33,273,33],[272,34,273,34],[272,35,273,35],[272,36,273,36],[272,22,273,22],[274,8,275,8],[274,9,275,9],[272,16,273,16],[272,18,273,18],[290,27,290,38],[277,31,277,34],[277,35,277,38],[278,6,278,10],[278,11,278,14],[278,15,278,18],[278,19,278,22],[278,23,278,26],[276,23,276,26],[276,27,276,30],[276,31,276,34],[276,35,276,38],[276,6,276,10],[276,11,276,14],[276,15,276,18],[276,19,276,22],[278,27,278,30],[278,31,278,34],[278,35,278,38],[277,6,277,10],[277,11,277,14],[277,15,277,18],[277,27,277,30],[86,2,86,17],[86,29,86,37],[144,29,144,37],[144,2,144,17],[218,2,218,17],[218,29,218,37],[286,2,286,17],[286,29,286,37],[277,19,277,22],[277,23,277,26],[274,10,275,10],[271,31,271,34],[271,35,271,38],[271,23,271,26],[274,6,275,6],[275,27,275,30],[275,31,275,34],[272,37,273,37],[275,11,275,14],[275,15,275,18],[275,19,275,22],[275,23,275,26],[275,35,275,38],[271,10,273,10]]}
[null,null,null,"PLAN  STUDIÓW  NR  I",null,null,null,null,null,null,null,null,null,null,null,null,null,null,null,null,null,null,null,null,null,null,null,"ZATWIERDZAM"]
["WYDZIAŁ INŻYNIERII MECHANICZNEJ"]
[null,null,null,"PROFIL KSZTAŁCENIA:",null,null,null,null,"PRAKTYCZNY"]
[null,null,null,"POZIOM STUDIÓW:",null,null,null,null,"PIERWSZEGO STOPNIA (3,5-letnie inżynierskie)"]
["UNIWERSYTET TECHNOLOGICZNO-PRZYRODNICZY",null,null,"FORMA STUDIÓW:",null,null,null,null,"STUDIA STACJONARNE",null,null,null,null,null,null,null,null,null,null,null,null,null,null,null,null,null,null,"PROREKTOR"]
["IM. J. i J. ŚNIADECKICH ",null,null,"KIERUNEK:",null,null,null,null,"PRZETWÓRSTWO TWORZYW SZTUCZNYCH",null,null,null,null,null,null,null,null,null,null,null,null,null,null,null,null,null,null,"ds. Dydaktycznych  i  Studenckich"]
["W BYDGOSZCZY",null,null,"SPECJALNOŚĆ:",null,null,null,null,"1. TECHNOLOGICZNA"]
[null,null,null,null,null,null,null,null,"2. NARZĘDZIOWA CAD/CAM"]
[null,null,null,null,null,null,null,null,null,null,null,null,null,null,null,null,null,null,null,null,null,null,null,null,null,null,null,"Bydgoszcz dn. …………………….."]
[]
["Pozycja     planu","NAZWA PRZEDMIOTU",null,"Liczba",null,null,"GODZINY",null,null,null,null,"ROZKŁAD  ZAJĘĆ  w  SEMESTRZE"]
[null,null,null,null,null,null,"Razem","w tym",null,null,null,"sem. I",null,null,null,"sem. II",null,null,null,"sem. III",null,null,null,"sem. IV",null,null,null,"sem. V",null,null,null,"sem. VI",null,null,null,"sem. VII"]
[null,null,null,"egza-mi-nów","zali-czeń","pkt. ECTS",null,"W","Ć","L ","P / S","Liczba godzin tygodniowo (semestr I - VII po 15 tygodni)"]
[null,null,null,null,null,null,null,null,null,null,null,"W","Ć","L","P/S","W","Ć","L","P/S","W","Ć","L","P/S","W","Ć","L","P/S","W","Ć","L","P/S","W","Ć","L","P/S","W","Ć","L","P/S"]
[]
["A.","PRZEDMIOTY  OGÓLNE ",null,null,null,null,null,null,null,null,null,null,null,null,null,null,null,null,null,null,null,null,null,null,null,null,null,null,null,null,null,null,null,null,null,null,null,null,null,"suma"]
["1.","Język obcy2",null,1,3,5,{"$f":"SUM(H17:K17)","v":120},null,null,{"$f":"N17+R17+V17+Z17+AD17+AH17+AL17","v":120},null,null,null,null,null,null,null,null,null,null,null,30,null,null,null,30,null,null,null,30,null,null,null,30,null,null,null,null,null,{"$f":"sumaECTS(L17:AM17)","v":5}]
["2.","Przedmioty humanistyczne do wyboru3",null,null,2,4,{"$f":"SUM(H18:K18)","v":45},{"$f":"L18+P18+T18+X18+AB18+AF18+AJ18","v":45},null,null,null,30,null,null,null,15,null,null,null,null,null,null,null,null,null,null,null,null,null,null,null,null,null,null,null,null,null,null,null,{"$f":"sumaECTS(L18:AM18)","v":4}]
["3.","Wychowanie fizyczne4",null,null,2,0,60,null,{"$f":"M19+Q19+U19+Y19+AC19+AG19+AK19","v":60},null,null,null,null,null,null,null,null,null,null,null,30,null,null,null,30,null,null,null,null,null,null,null,null,null,null,null,null,null,null,0]
["4.","Technologia informacyjna",null,null,2,3,30,15,null,{"$f":"N20+R20+V20+Z20+AD20+AH20+AL20","v":15},null,15,null,15,null,null,null,null,null,null,null,null,null,null,null,null,null,null,null,null,null,null,null,null,null,null,null,null,null,3]
["5.","BHP i ergonomia",null,null,1,2,15,15,null,null,null,15,null,null,null,null,null,null,null,null,null,null,null,null,null,null,null,null,null,null,null,null,null,null,null,null,null,null,null,2]
["6.","Ochrona własności intelektualnej",null,null,1,1,15,15,null,null,null,null,null,null,null,null,null,null,null,null,null,null,null,null,null,null,null,null,null,null,null,null,null,null,null,15,null,null,null,1]
["7.","Podstawy przedsiębiorczości",null,null,1,1,15,15,null,null,null,null,null,null,null,null,null,null,null,null,null,null,null,null,null,null,null,null,null,null,null,null,null,null,null,15,null,null,null,1]
["8.","Komunikacja społeczna",null,null,1,1,15,15,null,null,null,null,null,null,null,null,null,null,null,null,null,null,null,null,null,null,null,null,null,null,null,null,null,null,null,15,null,null,null,1]
[null,"RAZEM     ",null,{"$f":"SUM(D17:D24)","v":1},{"$f":"SUM(E17:E24)","v":13},{"$f":"SUM(F17:F24)","v":17},{"$f":"SUM(G17:G24)","v":315},120,60,135,0,60,0,15,0,15,0,0,0,0,30,30,0,0,30,30,0,0,0,30,0,0,0,30,0,45,0,0,0]
[null,null,null,null,null,null,null,null,null,null,null,{"$f":"SUM(L25:O25)","v":75},null,null,null,{"$f":"SUM(P25:S25)","v":15},null,null,null,{"$f":"SUM(T25:W25)","v":60},null,null,null,null,{"$f":"SUM(X25:AA25)","v":60},null,null,{"$f":"SUM(AB25:AE25)","v":30},null,null,null,{"$f":"SUM(AF25:AI25)","v":30},null,null,null,{"$f":"SUM(AJ25:AM25)","v":45},null,null,null,null,{"$f":"SUM(AN17:AN24)","v":17}]
["PODSUMOWANIE  ARKUSZA  1",null,null,"egza-mi-nów","zali-czeń","pkt. ECTS","Razem","W","Ć","L ","P / S","sem. I",null,null,null,"sem. II",null,null,null,"sem. III",null,null,null,"sem. IV",null,null,null,"sem. V",null,null,null,"sem. VI",null,null,null,"sem. VII"]
[null,null,null,null,null,null,null,null,null,null,null,"W","Ć","L","P/S","W","Ć","L","P/S","W","Ć","L","P/S","W","Ć","L","P/S","W","Ć","L","P/S","W","Ć","L","P/S","W","Ć","L","P/S"]
[]
[null,null,null,{"$f":"SUM(D25)","v":1},13,{"$f":"SUM(F25)","v":17},315,120,60,135,0,60,0,15,0,15,0,0,0,0,30,30,0,0,30,30,0,0,0,30,0,0,0,30,0,45,0,0,0,"suma"]
[null,null,null,null,null,null,null,null,null,null,null,{"$f":"SUM(L30:O30)","v":75},null,null,null,{"$f":"SUM(P30:S30)","v":15},null,null,null,{"$f":"SUM(T30:W30)","v":60},null,null,null,{"$f":"SUM(X30:AA30)","v":60},null,null,null,{"$f":"SUM(AB30:AE30)","v":30},null,null,null,{"$f":"SUM(AF30:AI30)","v":30},null,null,null,{"$f":"SUM(AJ30:AM30)","v":45},null,null,null,{"$f":"SUM(L31:AM31)","v":315}]
[null,null,null,"Liczba:  ",null,null,"egzaminów",null,null,null,null,0,null,null,null,0,null,null,null,0,null,null,null,0,null,null,null,0,null,null,null,1,null,null,null,0,null,null,null,{"$f":"SUM(L32:AM32)","v":1}]
[null,null,null,null,null,null,"zaliczeń",null,null,null,null,4,null,null,null,1,null,null,null,2,null,null,null,2,null,null,null,1,null,null,null,0,null,null,null,3,null,null,null,{"$f":"SUM(L33:AM33)","v":13}]
[null,null,null,null,null,null,"pkt. ECTS",null,null,null,null,7,null,null,null,2,null,null,null,1,null,null,null,1,null,null,null,1,null,null,null,2,null,null,null,3,null,null,null,{"$f":"SUM(L34:AM34)","v":17}]
[]
["UWAGI:",null,null,null,null,null,null,null,null,null,null,null,null,null,null,null,null,null,null,null,null,null,null,null,null,null,null,null,"Obowiązuje od roku akademickiego: 2018/2019"]
[null,"1.","Dla studentów I roku studiów stacjonarnych I stopnia wszystkie formy zajęć dydaktycznych przewidziane w planie studiów są obowiązkowe. Na wyższych latach obowiązkowe są: ćwiczenia audytoryjne i laboratoryjne, "]
[null,null,"lektoraty,  zajęcia: sportowe, terenowe, projektowe, plenerowe i seminaria.",null,null,null,null,null,null,null,null,null,null,null,null,null,null,null,null,null,null,null,null,null,null,null,null,null,"Legenda:"]
[null,"2.","Język obcy do wyboru spośród: 1. Język angielski, 2. Język niemiecki, ",null,null,null,null,null,null,null,null,null,null,null,null,null,null,null,null,null,null,null,null,null,null,null,null,null,"W "," - wykład"]
[null,"3.","Przedmioty humanistyczne do wyboru spośród: semestr I: 1. Psychologia, 2. Filozofia; semestr II: 1. Elementy prawa, 2. Socjologia ogólna, ",null,null,null,null,null,null,null,null,null,null,null,null,null,null,null,null,null,null,null,null,null,null,null,null,null,"Ć "," - ćwiczenia audytoryjne"]
[null,"4.","Wychowanie fizyczne - studenci dokonują wyboru jednej formy zajęć z oferty SWFiSW.",null,null,null,null,null,null,null,null,null,null,null,null,null,null,null,null,null,null,null,null,null,null,null,null,null,"L "," - ćwiczenia laboratoryjne, lektorat języków obcych"]
[null,"5.","Studentów obowiązuje zaliczenie: 1 dzień w tygodniu praktyki zawodowej podczas III sem.  (2pkt. ECTS); 1 dzień w tygodniu praktyki zawodowej podczas IV sem. (2 pkt. ECTS) oraz 6 tygodni praktyki zawodowej po IV sem. (6 pkt. ECTS); 2 dni w tygodniu praktyki zawodowej podczas V sem. (4 pkt. ECTS); 2 dni w tygodniu praktyki zawodowej podczas VI sem. (4 pkt. ECTS) oraz 6 tygodni praktyki zawodowej po VI sem. (6 pkt ECTS); 2 dni w tygodniu praktyki zawodowej podczas VII sem. (4 pkt. ECTS).",null,null,null,null,null,null,null,null,null,null,null,null,null,null,null,null,null,null,null,null,null,null,null,null,null,"P\nS\nT"," - ćwiczenia projektowe\n- seminarium\n- zajęcia terenowe"]
[null,null,null,null,null,null,null,null,null,null,null,null,null,null,null,null,null,null,null,null,null,null,null,null,null,null,null,null,null," - egzamin"]
[]
[]
[null,null,null,null,null,null,null,null,null,null,null,null,null,null,null,null,null,null,null,null,null,null,null,null,null,null,null,"ARKUSZ 1"]
[null,null,null,"PLAN  STUDIÓW  NR  I",null,null,null,null,null,null,null,null,null,null,null,null,null,null,null,null,null,null,null,null,null,null,null,"ZATWIERDZAM"]
["WYDZIAŁ INŻYNIERII MECHANICZNEJ"]
[null,null,null,"PROFIL KSZTAŁCENIA:",null,null,null,null,"PRAKTYCZNY"]
[null,null,null,"POZIOM STUDIÓW:",null,null,null,null,"PIERWSZEGO STOPNIA (3,5-letnie inżynierskie)"]
["UNIWERSYTET TECHNOLOGICZNO-PRZYRODNICZY",null,null,"FORMA STUDIÓW:",null,null,null,null,"STUDIA STACJONARNE",null,null,null,null,null,null,null,null,null,null,null,null,null,null,null,null,null,null,"PROREKTOR"]
["IM. J. i J. ŚNIADECKICH ",null,null,"KIERUNEK:",null,null,null,null,"PRZETWÓRSTWO TWORZYW SZTUCZNYCH",null,null,null,null,null,null,null,null,null,null,null,null,null,null,null,null,null,null,"ds. Dydaktycznych  i  Studenckich"]
["W BYDGOSZCZY",null,null,"SPECJALNOŚĆ:",null,null,null,null,"1. TECHNOLOGICZNA"]
[null,null,null,null,null,null,null,null,"2. NARZĘDZIOWA CAD/CAM"]
[null,null,null,null,null,null,null,null,null,null,null,null,null,null,null,null,null,null,null,null,null,null,null,null,null,null,null,"Bydgoszcz dn. …………………….."]
[]
["Pozycja     planu","NAZWA PRZEDMIOTU",null,"Liczba",null,null,"GODZINY",null,null,null,null,"ROZKŁAD  ZAJĘĆ  w  SEMESTRZE"]
[null,null,null,null,null,null,"Razem","w tym",null,null,null,"sem. I",null,null,null,"sem. II",null,null,null,"sem. III",null,null,null,"sem. IV",null,null,null,"sem. V",null,null,null,"sem. VI",null,null,null,"sem. VII"]
[null,null,null,"egza-mi-nów","zali-czeń","pkt. ECTS",null,"W","Ć","L ","P / S","Liczba godzin tygodniowo (semestr I - VII po 15 tygodni)"]
[null,null,null,null,null,null,null,null,null,null,null,"W","Ć","L","P/S","W","Ć","L","P/S","W","Ć","L","P/S","W","Ć","L","P/S","W","Ć","L","P/S","W","Ć","L","P/S","W","Ć","L","P/S"]
[]
["B.","PRZEDMIOTY  PODSTAWOWE",null,null,null,null,null,null,null,null,null,null,null,null,null,null,null,null,null,null,null,null,null,null,null,null,null,null,null,null,null,null,null,null,null,null,null,null,null,"suma"]
["1.","Matematyka inżynierska",null,1,3,11,{"$f":"SUM(H63:K63)","v":135},{"$f":"L63+P63+T63+X63+AB63+AF63+AJ63","v":60},{"$f":"M63+Q63+U63+Y63+AC63+AG63+AK63","v":75},null,{"$f":"IF(SUM(O63+S63+W63+AA63+AE63+AI63+AM63+AQ63)=0,\"\",SUM(O63+S63+W63+AA63+AE63+AI63+AM63+AQ63))","v":""},30,45,null,null,30,30,null,null,null,null,null,null,null,null,null,null,null,null,null,null,null,null,null,null,null,null,null,null,{"$f":"sumaECTS(L63:AM63)","v":11}]
["2.","Fizyka",null,1,2,7,{"$f":"SUM(H64:K64)","v":75},{"$f":"L64+P64+T64+X64+AB64+AF64+AJ64","v":30},{"$f":"M64+Q64+U64+Y64+AC64+AG64+AK64","v":30},{"$f":"N64+R64+V64+Z64+AD64+AH64+AL64","v":15},"",30,30,null,null,null,null,15,null,null,null,null,null,null,null,null,null,null,null,null,null,null,null,null,null,null,null,null,null,7]
["3.","Statystyka inżynierska",null,null,2,3,30,15,15,null,"",null,null,null,null,null,null,null,null,15,15,null,null,null,null,null,null,null,null,null,null,null,null,null,null,null,null,null,null,3]
["4.","Mechanika techniczna",null,1,2,6,75,30,30,15,"",null,null,null,null,30,30,15,null,null,null,null,null,null,null,null,null,null,null,null,null,null,null,null,null,null,null,null,null,6]
["5.","Podstawy konstrukcji maszyn",null,1,3,9,90,45,30,null,15,null,null,null,null,null,null,null,null,30,30,null,null,15,null,null,15,null,null,null,null,null,null,null,null,null,null,null,null,9]
["6.","Termodynamika techniczna",null,1,2,4,45,15,15,15,"",null,null,null,null,null,null,null,null,null,null,null,null,15,15,15,null,null,null,null,null,null,null,null,null,null,null,null,null,{"$f":"sumaECTS(L68:AM68)","v":4}]
["7.","Mechanika płynów",null,1,2,6,60,30,15,15,"",null,null,null,null,null,null,null,null,30,15,15,null,null,null,null,null,null,null,null,null,null,null,null,null,null,null,null,null,6]
[null,"RAZEM     ",null,{"$f":"SUM(D63:D69)","v":6},{"$f":"SUM(E63:E69)","v":16},{"$f":"SUM(F63:F69)","v":46},{"$f":"SUM(G63:G69)","v":510},225,210,60,15,60,75,0,0,60,60,30,0,75,60,15,0,30,15,15,15,0,0,0,0,0,0,0,0,0,0,0,0]
[null,null,null,null,null,null,null,null,null,null,null,{"$f":"SUM(L70:O70)","v":135},null,null,null,{"$f":"SUM(P70:S70)","v":150},null,null,null,{"$f":"SUM(T70:W70)","v":150},null,null,null,{"$f":"SUM(X70:AA70)","v":75},null,null,null,{"$f":"SUM(AB70:AE70)","v":0},null,null,null,{"$f":"SUM(AF70:AI70)","v":0},null,null,null,{"$f":"SUM(AJ70:AM70)","v":0},null,null,null,null,{"$f":"SUM(AN63:AN69)","v":46}]
["PODSUMOWANIE  ARKUSZA  1+2",null,null,"egza-mi-nów","zali-czeń","pkt. ECTS","Razem","W","Ć","L ","P / S","sem. I",null,null,null,"sem. II",null,null,null,"sem. III",null,null,null,"sem. IV",null,null,null,"sem. V",null,null,null,"sem. VI",null,null,null,"sem. VII"]
[null,null,null,null,null,null,null,null,null,null,null,"W","Ć","L","P/S","W","Ć","L","P/S","W","Ć","L","P/S","W","Ć","L","P/S","W","Ć","L","P/S","W","Ć","L","P/S","W","Ć","L","P/S"]
[]
[null,null,null,{"$f":"SUM(D25+D70)","v":7},{"$f":"SUM(E25+E70)","v":29},63,825,345,270,195,15,120,75,15,0,75,60,30,0,75,90,45,0,30,45,45,15,0,0,30,0,0,0,30,0,45,0,0,0,"suma"]
[null,null,null,null,null,null,null,null,null,null,null,{"$f":"SUM(L75:O75)","v":210},null,null,null,{"$f":"SUM(P75:S75)","v":165},null,null,null,{"$f":"SUM(T75:W75)","v":210},null,null,null,{"$f":"SUM(X75:AA75)","v":135},null,null,null,{"$f":"SUM(AB75:AE75)","v":30},null,null,null,{"$f":"SUM(AF75:AI75)","v":30},null,null,null,{"$f":"SUM(AJ75:AM75)","v":45},null,null,null,{"$f":"SUM(L76:AM76)","v":825}]
[null,null,null,"Liczba:  ",null,null,"egzaminów",null,null,null,null,1,null,null,null,2,null,null,null,1,null,null,null,2,null,null,null,0,null,null,null,1,null,null,null,0,null,null,null,{"$f":"SUM(L77:AM77)","v":7}]
[null,null,null,null,null,null,"zaliczeń",null,null,null,null,7,null,null,null,5,null,null,null,8,null,null,null,5,null,null,null,1,null,null,null,0,null,null,null,3,null,null,null,{"$f":"SUM(L78:AM78)","v":29}]
[null,null,null,null,null,null,"pkt. ECTS",null,null,null,null,18,null,null,null,15,null,null,null,16,null,null,null,8,null,null,null,1,null,null,null,2,null,null,null,3,null,null,null,{"$f":"SUM(L79:AM79)","v":63}]
[]
["UWAGI:",null,null,null,null,null,null,null,null,null,null,null,null,null,null,null,null,null,null,null,null,null,null,null,null,null,null,null,"Obowiązuje od roku akademickiego: 2018/2019"]
[null,"1.","Dla studentów I roku studiów stacjonarnych I stopnia wszystkie formy zajęć dydaktycznych przewidziane w planie studiów są obowiązkowe. Na wyższych latach obowiązkowe są: ćwiczenia audytoryjne i laboratoryjne, "]
[null,null,"lektoraty,  zajęcia: sportowe, terenowe, projektowe, plenerowe i seminaria.",null,null,null,null,null,null,null,null,null,null,null,null,null,null,null,null,null,null,null,null,null,null,null,null,null,"Legenda:"]
[null,"2.","Język obcy do wyboru spośród: 1. Język angielski, 2. Język niemiecki, ",null,null,null,null,null,null,null,null,null,null,null,null,null,null,null,null,null,null,null,null,null,null,null,null,null,"W "," - wykład"]
[null,"3.","Przedmioty humanistyczne do wyboru spośród: semestr I: 1. Psychologia, 2. Filozofia; semestr II: 1. Elementy prawa, 2. Socjologia ogólna, ",null,null,null,null,null,null,null,null,null,null,null,null,null,null,null,null,null,null,null,null,null,null,null,null,null,"Ć "," - ćwiczenia audytoryjne"]
[null,"4.","Wychowanie fizyczne - studenci dokonują wyboru jednej formy zajęć z oferty SWFiSW.",null,null,null,null,null,null,null,null,null,null,null,null,null,null,null,null,null,null,null,null,null,null,null,null,null,"L "," - ćwiczenia laboratoryjne, lektorat języków obcych"]
[null,"5.","Studentów obowiązuje zaliczenie: 1 dzień w tygodniu praktyki zawodowej podczas III sem.  (2pkt. ECTS); 1 dzień w tygodniu praktyki zawodowej podczas IV sem. (2 pkt. ECTS) oraz 6 tygodni praktyki zawodowej po IV sem. (6 pkt. ECTS); 2 dni w tygodniu praktyki zawodowej podczas V sem. (4 pkt. ECTS); 2 dni w tygodniu praktyki zawodowej podczas VI sem. (4 pkt. ECTS) oraz 6 tygodni praktyki zawodowej po VI sem. (6 pkt ECTS); 2 dni w tygodniu praktyki zawodowej podczas VII sem. (4 pkt. ECTS).",null,null,null,null,null,null,null,null,null,null,null,null,null,null,null,null,null,null,null,null,null,null,null,null,null,"P\nS\nT"," - ćwiczenia projektowe\n- seminarium\n- zajęcia terenowe"]
[null,null,null,null,null,null,null,null,null,null,null,null,null,null,null,null,null,null,null,null,null,null,null,null,null,null,null,null,null," - egzamin"]
[]
[]
[null,null,null,null,null,null,null,null,null,null,null,null,null,null,null,null,null,null,null,null,null,null,null,null,null,null,null,"ARKUSZ 2"]
[null,null,null,"PLAN  STUDIÓW  NR  I",null,null,null,null,null,null,null,null,null,null,null,null,null,null,null,null,null,null,null,null,null,null,null,"ZATWIERDZAM"]
["WYDZIAŁ INŻYNIERII MECHANICZNEJ"]
[null,null,null,"PROFIL KSZTAŁCENIA:",null,null,null,null,"PRAKTYCZNY"]
[null,null,null,"POZIOM STUDIÓW:",null,null,null,null,"PIERWSZEGO STOPNIA (3,5-letnie inżynierskie)"]
["UNIWERSYTET TECHNOLOGICZNO-PRZYRODNICZY",null,null,"FORMA STUDIÓW:",null,null,null,null,"STUDIA STACJONARNE",null,null,null,null,null,null,null,null,null,null,null,null,null,null,null,null,null,null,"PROREKTOR"]
["IM. J. i J. ŚNIADECKICH ",null,null,"KIERUNEK:",null,null,null,null,"PRZETWÓRSTWO TWORZYW SZTUCZNYCH",null,null,null,null,null,null,null,null,null,null,null,null,null,null,null,null,null,null,"ds. Dydaktycznych  i  Studenckich"]
["W BYDGOSZCZY",null,null,"SPECJALNOŚĆ:",null,null,null,null,"1. TECHNOLOGICZNA"]
[null,null,null,null,null,null,null,null,"2. NARZĘDZIOWA CAD/CAM"]
[null,null,null,null,null,null,null,null,null,null,null,null,null,null,null,null,null,null,null,null,null,null,null,null,null,null,null,"Bydgoszcz dn. …………………….."]
[]
["Pozycja     planu","NAZWA PRZEDMIOTU",null,"Liczba",null,null,"GODZINY",null,null,null,null,"ROZKŁAD  ZAJĘĆ  w SEMESTRZE"]
[null,null,null,null,null,null,"Razem","w tym",null,null,null,"sem. I",null,null,null,"sem. II",null,null,null,"sem. III",null,null,null,"sem. IV",null,null,null,"sem. V",null,null,null,"sem. VI",null,null,null,"sem. VII"]
[null,null,null,"egza-mi-nów","zali-czeń","pkt. ECTS",null,"W","Ć","L ","P / S","Liczba godzin tygodniowo (semestr I - VII po 15 tygodni)"]
[null,null,null,null,null,null,null,null,null,null,null,"W","Ć","L","P/S","W","Ć","L","P/S","W","Ć","L","P/S","W","Ć","L","P/S","W","Ć","L","P/S","W","Ć","L","P/S","W","Ć","L","P/S"]
[]
["C.","PRZEDMIOTY  KIERUNKOWE",null,null,null,null,null,null,null,null,null,null,null,null,null,null,null,null,null,null,null,null,null,null,null,null,null,null,null,null,null,null,null,null,null,null,null,null,null,"suma"]
["1.","Materiały inżynierskie z elementami chemii",null,1,1,6,{"$f":"SUM(H108:K108)","v":75},{"$f":"L108+P108+T108+X108+AB108+AF108+AJ108","v":45},null,{"$f":"N108+R108+V108+Z108+AD108+AH108+AL108","v":30},null,45,null,30,null,null,null,null,null,null,null,null,null,null,null,null,null,null,null,null,null,null,null,null,null,null,null,null,null,{"$f":"sumaECTS(L108:AM108)","v":6}]
["2.","Podstawy obróbki materiałów",null,null,1,1,{"$f":"SUM(H109:K109)","v":15},null,null,{"$f":"N109+R109+V109+Z109+AD109+AH109+AL109","v":15},null,null,null,15,null,null,null,null,null,null,null,null,null,null,null,null,null,null,null,null,null,null,null,null,null,null,null,null,null,{"$f":"sumaECTS(L109:AM109)","v":1}]
["3.","Podstawy maszynoznawstwa",null,null,1,2,15,{"$f":"L110+P110+T110+X110+AB110+AF110+AJ110","v":15},null,null,null,15,null,null,null,null,null,null,null,null,null,null,null,null,null,null,null,null,null,null,null,null,null,null,null,null,null,null,null,{"$f":"sumaECTS(L110:AM110)","v":2}]
["4.","Grafika inżynierska ",null,null,3,5,90,30,null,60,null,30,null,30,null,null,null,30,null,null,null,null,null,null,null,null,null,null,null,null,null,null,null,null,null,null,null,null,null,{"$f":"sumaECTS(L111:AM111)","v":5}]
["5.","Metaloznawstwo",null,null,2,4,60,30,null,30,null,null,null,null,null,30,null,30,null,null,null,null,null,null,null,null,null,null,null,null,null,null,null,null,null,null,null,null,null,4]
["6.","Eletrotechnika i elektronika",null,null,2,2,30,15,null,15,null,null,null,null,null,15,null,15,null,null,null,null,null,null,null,null,null,null,null,null,null,null,null,null,null,null,null,null,null,2]
["7.","Tworzywa polimerowe",null,1,1,4,60,30,null,30,null,null,null,null,null,30,null,30,null,null,null,null,null,null,null,null,null,null,null,null,null,null,null,null,null,null,null,null,null,4]
["8.","Obróbka cieplna i plastyczna",null,null,2,3,45,30,null,15,null,null,null,null,null,30,null,15,null,null,null,null,null,null,null,null,null,null,null,null,null,null,null,null,null,null,null,null,null,3]
["9.","Technologie przetwórstwa tworzyw",null,1,3,7,90,45,15,30,null,null,null,null,null,null,null,null,null,30,null,null,null,15,15,30,null,null,null,null,null,null,null,null,null,null,null,null,null,7]
["10.","CAD",null,null,2,4,45,null,null,30,{"$f":"O117+W117+S117+AA117+AE117+AM117","v":15},null,null,null,null,null,null,null,null,null,null,30,15,null,null,null,null,null,null,null,null,null,null,null,null,null,null,null,null,4]
["11.","Odlewnictwo i spawalnictwo",null,1,1,3,45,30,null,15,null,null,null,null,null,null,null,null,null,null,null,null,null,30,null,15,null,null,null,null,null,null,null,null,null,null,null,null,null,3]
["12.","Metodyka Design Thinking",null,null,2,2,30,null,null,15,15,null,null,null,null,null,null,null,null,null,null,null,null,null,null,15,15,null,null,null,null,null,null,null,null,null,null,null,null,2]
["13.","Systemy kontroli jakości",null,null,2,3,45,30,null,null,15,null,null,null,null,null,null,null,null,null,null,null,null,30,null,null,15,null,null,null,null,null,null,null,null,null,null,null,null,3]
["14.","Metrologia",null,null,2,2,30,15,null,15,null,null,null,null,null,null,null,null,null,null,null,null,null,15,null,15,null,null,null,null,null,null,null,null,null,null,null,null,null,2]
["15.","Zaawansowane techniki badań materiałów",null,null,2,3,30,15,null,15,null,null,null,null,null,null,null,null,null,null,null,null,null,null,null,null,null,15,null,15,null,null,null,null,null,null,null,null,null,3]
["16.","Projektowanie i konstrukcja wytworów z tworzyw polimerowych",null,null,2,3,45,15,null,null,30,null,null,null,null,null,null,null,null,null,null,null,null,null,null,null,null,15,null,null,30,null,null,null,null,null,null,null,null,3]
["17.","Metody elementów skończonych",null,null,2,3,45,15,null,30,null,null,null,null,null,null,null,null,null,null,null,null,null,null,null,null,null,15,null,30,null,null,null,null,null,null,null,null,null,3]
["18.","Praktyka zawodowa5",null,null,7,25,null,null,null,null,null,null,null,null,null,null,null,null,null,"x",null,null,null,"x",null,null,null,"x",null,null,null,"x",null,null,null,"x",null,null,null,{"$f":"sumaECTS(L125:AM125)","v":25}]
["19.","Przygotowanie i złożenie pracy dyplomowej oraz przygotowanie do egzaminu dyplomowego",null,null,1,15,null,null,null,null,null,null,null,null,null,null,null,null,null,null,null,null,null,null,null,null,null,null,null,null,null,null,null,null,null,"x",null,null,null,{"$f":"sumaECTS(L126:AM126)","v":15}]
["20.","Obróbka skrawaniem",null,1,1,5,45,30,null,15,null,null,null,null,null,null,null,null,null,30,null,15,null,null,null,null,null,null,null,null,null,null,null,null,null,null,null,null,null,{"$f":"sumaECTS(L127:AM127)","v":5}]
[null,"RAZEM     ",null,{"$f":"SUM(D108:D127)","v":5},{"$f":"SUM(E108:E127)","v":40},{"$f":"SUM(F108:F127)","v":102},840,390,15,360,75,{"$f":"SUM(L108:L127)","v":90},0,75,0,105,0,120,0,60,0,45,15,90,15,75,30,45,0,45,30,0,0,0,0,0,0,0,0,null,"suma"]
[null,null,null,null,null,null,null,null,null,null,null,{"$f":"SUM(L128:O128)","v":165},null,null,null,{"$f":"SUM(P128:S128)","v":225},null,null,null,{"$f":"SUM(T128:W128)","v":120},null,null,null,{"$f":"SUM(X128:AA128)","v":210},null,null,null,{"$f":"SUM(AB128:AE128)","v":120},null,null,null,{"$f":"SUM(AF128:AI128)","v":0},null,null,null,{"$f":"SUM(AJ128:AM128)","v":0},null,null,null,null,{"$f":"SUM(AN108:AN127)","v":102}]
["PODSUMOWANIE  ARKUSZA  1+2+3",null,null,"egza-mi-nów","zali-czeń","pkt. ECTS","Razem","W","Ć","L ","P / S","sem. I",null,null,null,"sem. II",null,null,null,"sem. III",null,null,null,"sem. IV",null,null,null,"sem. V",null,null,null,"sem. VI",null,null,null,"sem. VII"]
[null,null,null,null,null,null,null,null,null,null,null,"W","Ć","L","P/S","W","Ć","L","P/S","W","Ć","L","P/S","W","Ć","L","P/S","W","Ć","L","P/S","W","Ć","L","P/S","W","Ć","L","P/S"]
[]
[null,null,null,{"$f":"SUM(D25+D128+D70)","v":12},{"$f":"SUM(E25+E128+E70)","v":69},{"$f":"SUM(F70+F128+F25)","v":165},{"$f":"SUM(G128+G70+G25)","v":1665},{"$f":"SUM(H25+H128+H70)","v":735},{"$f":"SUM(I25+I128+I70)","v":285},{"$f":"SUM(J25+J128+J70)","v":555},{"$f":"SUM(K25+K128+K70)","v":90},{"$f":"SUM(L70+L128+L25)","v":210},75,90,0,180,60,150,0,135,90,90,15,120,60,120,45,{"$f":"SUM(AB70+AB128+AB25)","v":45},0,75,30,0,0,30,0,45,0,0,0,"suma"]
[null,null,null,null,null,null,null,null,null,null,null,{"$f":"SUM(L133:O133)","v":375},null,null,null,{"$f":"SUM(P133:S133)","v":390},null,null,null,{"$f":"SUM(T133:W133)","v":330},null,null,null,{"$f":"SUM(X133:AA133)","v":345},null,null,null,{"$f":"SUM(AB133:AE133)","v":150},null,null,null,{"$f":"SUM(AF133:AI133)","v":30},null,null,null,{"$f":"SUM(AJ133:AM133)","v":45},null,null,null,{"$f":"SUM(L134:AM134)","v":1665}]
[null,null,null,"Liczba:  ",null,null,"egzaminów",null,null,null,null,2,null,null,null,3,null,null,null,3,null,null,null,3,null,null,null,0,null,null,null,1,null,null,null,0,null,null,null,{"$f":"SUM(L135:AM135)","v":12}]
[null,null,null,null,null,null,"zaliczeń",null,null,null,null,12,null,null,null,13,null,null,null,12,null,null,null,17,null,null,null,8,null,null,null,2,null,null,null,5,null,null,null,69]
[null,null,null,null,null,null,"pkt. ECTS",null,null,null,null,30,null,null,null,30,null,null,null,30,null,null,null,30,null,null,null,13,null,null,null,11,null,null,null,21,null,null,null,165]
[]
["UWAGI:",null,null,null,null,null,null,null,null,null,null,null,null,null,null,null,null,null,null,null,null,null,null,null,null,null,null,null,"Obowiązuje od roku akademickiego: 2018/2019"]
[null,"1.","Dla studentów I roku studiów stacjonarnych I stopnia wszystkie formy zajęć dydaktycznych przewidziane w planie studiów są obowiązkowe. Na wyższych latach obowiązkowe są: ćwiczenia audytoryjne i laboratoryjne, "]
[null,null,"lektoraty,  zajęcia: sportowe, terenowe, projektowe, plenerowe i seminaria.",null,null,null,null,null,null,null,null,null,null,null,null,null,null,null,null,null,null,null,null,null,null,null,null,null,"Legenda:"]
[null,"2.","Język obcy do wyboru spośród: 1. Język angielski, 2. Język niemiecki, ",null,null,null,null,null,null,null,null,null,null,null,null,null,null,null,null,null,null,null,null,null,null,null,null,null,"W "," - wykład"]
[null,"3.","Przedmioty humanistyczne do wyboru spośród: semestr I: 1. Psychologia, 2. Filozofia; semestr II: 1. Elementy prawa, 2. Socjologia ogólna, ",null,null,null,null,null,null,null,null,null,null,null,null,null,null,null,null,null,null,null,null,null,null,null,null,null,"Ć "," - ćwiczenia audytoryjne"]
[null,"4.","Wychowanie fizyczne - studenci dokonują wyboru jednej formy zajęć z oferty SWFiSW.",null,null,null,null,null,null,null,null,null,null,null,null,null,null,null,null,null,null,null,null,null,null,null,null,null,"L "," - ćwiczenia laboratoryjne, lektorat języków obcych"]
[null,"5.","Studentów obowiązuje zaliczenie: 1 dzień w tygodniu praktyki zawodowej podczas III sem.  (2pkt. ECTS); 1 dzień w tygodniu praktyki zawodowej podczas IV sem. (2 pkt. ECTS) oraz 6 tygodni praktyki zawodowej po IV sem. (6 pkt. ECTS); 2 dni w tygodniu praktyki zawodowej podczas V sem. (4 pkt. ECTS); 2 dni w tygodniu praktyki zawodowej podczas VI sem. (4 pkt. ECTS) oraz 6 tygodni praktyki zawodowej po VI sem. (6 pkt ECTS); 2 dni w tygodniu praktyki zawodowej podczas VII sem. (4 pkt. ECTS).",null,null,null,null,null,null,null,null,null,null,null,null,null,null,null,null,null,null,null,null,null,null,null,null,null,"P\nS\nT"," - ćwiczenia projektowe\n- seminarium\n- zajęcia terenowe"]
[null,null,null,null,null,null,null,null,null,null,null,null,null,null,null,null,null,null,null,null,null,null,null,null,null,null,null,null,null," - egzamin"]
[]
[]
[null,null,null,null,null,null,null,null,null,null,null,null,null,null,null,null,null,null,null,null,null,null,null,null,null,null,null,"ARKUSZ 3"]
[null,null,null,"PLAN  STUDIÓW  NR  I",null,null,null,null,null,null,null,null,null,null,null,null,null,null,null,null,null,null,null,null,null,null,null,"ZATWIERDZAM"]
["WYDZIAŁ INŻYNIERII MECHANICZNEJ"]
[null,null,null,"PROFIL KSZTAŁCENIA:",null,null,null,null,"PRAKTYCZNY"]
[null,null,null,"POZIOM STUDIÓW:",null,null,null,null,"PIERWSZEGO STOPNIA (3,5-letnie inżynierskie)"]
["UNIWERSYTET TECHNOLOGICZNO-PRZYRODNICZY",null,null,"FORMA STUDIÓW:",null,null,null,null,"STUDIA STACJONARNE",null,null,null,null,null,null,null,null,null,null,null,null,null,null,null,null,null,null,"PROREKTOR"]
["IM. J. i J. ŚNIADECKICH ",null,null,"KIERUNEK:",null,null,null,null,"PRZETWÓRSTWO TWORZYW SZTUCZNYCH",null,null,null,null,null,null,null,null,null,null,null,null,null,null,null,null,null,null,"ds. Dydaktycznych  i  Studenckich"]
["W BYDGOSZCZY",null,null,"SPECJALNOŚĆ:",null,null,null,null,"1. TECHNOLOGICZNA"]
[]
[null,null,null,null,null,null,null,null,null,null,null,null,null,null,null,null,null,null,null,null,null,null,null,null,null,null,null,"Bydgoszcz dn. …………………….."]
[]
["Pozycja     planu","NAZWA PRZEDMIOTU",null,"Liczba",null,null,"GODZINY",null,null,null,null,"ROZKŁAD  ZAJĘĆ  w SEMESTRZE"]
[null,null,null,null,null,null,"Razem","w tym",null,null,null,"sem. I",null,null,null,"sem. II",null,null,null,"sem. III",null,null,null,"sem. IV",null,null,null,"sem. V",null,null,null,"sem. VI",null,null,null,"sem. VII"]
[null,null,null,"egza-mi-nów","zali-czeń","pkt. ECTS",null,"W","Ć","L ","P / S","Liczba godzin tygodniowo (semestr I - VII po 15 tygodni)"]
[null,null,null,null,null,null,null,null,null,null,null,"W","Ć","L","P/S","W","Ć","L","P/S","W","Ć","L","P/S","W","Ć","L","P/S","W","Ć","L","P/S","W","Ć","L","P/S","W","Ć","L","P/S"]
[]
["D.1","PRZEDMIOTY SPECJALNOŚCIOWE",null,null,null,null,null,null,null,null,null,null,null,null,null,null,null,null,null,null,null,null,null,null,null,null,null,null,null,null,null,null,null,null,null,null,null,null,null,"suma"]
["1.","Technologie przyrostowe w produkcji wyrobów z tworzyw",null,null,2,3,{"$f":"SUM(H166:K166)","v":30},{"$f":"L166+P166+T166+X166+AB166+AF166+AJ166","v":15},null,{"$f":"N166+R166+V166+Z166+AD166+AH166+AL166","v":15},null,null,null,null,null,null,null,null,null,null,null,null,null,null,null,null,null,15,null,15,null,null,null,null,null,null,null,null,null,{"$f":"sumaECTS(L166:AM166)","v":3}]
[null,null,null,null,null,null,{"$f":"SUM(H167:K167)","v":0},{"$f":"L167+P167+T167+X167+AB167+AF167+AJ167","v":0},null,{"$f":"N167+R167+V167+Z167+AD167+AH167+AL167","v":0},null,null,null,null,null,null,null,null,null,null,null,null,null,null,null,null,null,null,null,null,null,null,null,null,null,null,null,null,null,{"$f":"sumaECTS(L167:AM167)","v":0}]
[null,null,null,null,null,null,0,0,null,0,null,null,null,null,null,null,null,null,null,null,null,null,null,null,null,null,null,null,null,null,null,null,null,null,null,null,null,null,null,0]
[null,null,null,null,null,null,0,0,null,0,null,null,null,null,null,null,null,null,null,null,null,null,null,null,null,null,null,null,null,null,null,null,null,null,null,null,null,null,null,0]
["2.","Maszyny i urządzenia do przetwórstwa tworzyw",null,1,1,6,45,30,null,15,null,null,null,null,null,null,null,null,null,null,null,null,null,null,null,null,null,30,null,15,null,null,null,null,null,null,null,null,null,6]
[3,null,null,null,null,null,0,0,null,0,null,null,null,null,null,null,null,null,null,null,null,null,null,null,null,null,null,null,null,null,null,null,null,null,null,null,null,null,null,0]
[null,null,null,null,null,null,0,0,null,0,null,null,null,null,null,null,null,null,null,null,null,null,null,null,null,null,null,null,null,null,null,null,null,null,null,null,null,null,null,0]
[null,null,null,null,null,null,0,0,null,0,null,null,null,null,null,null,null,null,null,null,null,null,null,null,null,null,null,null,null,null,null,null,null,null,null,null,null,null,null,0]
["3.","Technologia wtryskiwania",null,1,1,5,45,30,null,15,null,null,null,null,null,null,null,null,null,null,null,null,null,null,null,null,null,30,null,15,null,null,null,null,null,null,null,null,null,5]
[4,null,null,null,null,null,0,0,null,0,null,null,null,null,null,null,null,null,null,null,null,null,null,null,null,null,null,null,null,null,null,null,null,null,null,null,null,null,null,0]
[5,null,null,null,null,null,0,0,null,0,null,null,null,null,null,null,null,null,null,null,null,null,null,null,null,null,null,null,null,null,null,null,null,null,null,null,null,null,null,0]
[null,null,null,null,null,null,0,0,null,0,null,null,null,null,null,null,null,null,null,null,null,null,null,null,null,null,null,null,null,null,null,null,null,null,null,null,null,null,null,0,{"$f":"SUM(#REF!)","v":{"$error":"#REF!"}}]
["4.","Recykling materiałów i gospodarka odpadami",null,null,2,3,30,15,null,15,null,null,null,null,null,null,null,null,null,null,null,null,null,null,null,null,null,15,null,15,null,null,null,null,null,null,null,null,null,3]
[null,null,null,null,null,null,0,0,null,0,{"$f":"O179+S179+W179+AA179+AE179+AI179+AM179","v":0},null,null,null,null,null,null,null,null,null,null,null,null,null,null,null,null,null,null,null,null,null,null,null,null,null,null,null,null,0]
[6,null,null,null,null,null,0,0,null,0,0,null,null,null,null,null,null,null,null,null,null,null,null,null,null,null,null,null,null,null,null,null,null,null,null,null,null,null,null,0]
[7,null,null,null,null,null,0,0,null,0,0,null,null,null,null,null,null,null,null,null,null,null,null,null,null,null,null,null,null,null,null,null,null,null,null,null,null,null,null,0]
["5.","Planowanie i utrzymanie produkcji",null,null,2,2,30,15,null,null,15,null,null,null,null,null,null,null,null,null,null,null,null,null,null,null,null,null,null,null,null,15,null,null,15,null,null,null,null,2]
[null,null,null,null,null,null,0,0,null,0,0,null,null,null,null,null,null,null,null,null,null,null,null,null,null,null,null,null,null,null,null,null,null,null,null,null,null,null,null,0]
[null,null,null,null,null,null,0,0,null,0,0,null,null,null,null,null,null,null,null,null,null,null,null,null,null,null,null,null,null,null,null,null,null,null,null,null,null,null,null,0]
[8,null,null,null,null,null,0,0,null,0,0,null,null,null,null,null,null,null,null,null,null,null,null,null,null,null,null,null,null,null,null,null,null,null,null,null,null,null,null,0]
["6.","Komputerowe metody wspomagania procesów przetwórstwa tworzyw",null,null,3,4,60,15,null,30,15,null,null,null,null,null,null,null,null,null,null,null,null,null,null,null,null,null,null,null,null,15,null,30,15,null,null,null,null,4]
["7.","Narzedzia do przetwórstwa tworzyw",null,1,3,5,105,30,null,15,60,null,null,null,null,null,null,null,null,null,null,null,null,null,null,null,null,null,null,null,null,30,null,15,30,null,null,null,30,5]
["8.","Metody modyfikacji tworzyw polimerowych",null,1,1,2,30,15,null,15,null,null,null,null,null,null,null,null,null,null,null,null,null,null,null,null,null,null,null,null,null,15,null,15,null,null,null,null,null,2]
["9.","Reologia stopów polimerowych",null,null,2,2,30,15,null,15,null,null,null,null,null,null,null,null,null,null,null,null,null,null,null,null,null,null,null,null,null,15,null,15,null,null,null,null,null,2]
["10.","Inżynieria odwrotna",null,null,2,1,30,15,null,15,null,null,null,null,null,null,null,null,null,null,null,null,null,null,null,null,null,null,null,null,null,null,null,null,null,15,null,15,null,1]
["11.","Eksploatacja maszyn i narzedzi",null,1,2,2,45,15,null,15,15,null,null,null,null,null,null,null,null,null,null,null,null,null,null,null,null,null,null,null,null,null,null,null,null,15,null,15,15,2]
["12.","Automatyzacja i robotyzacja procesów przetwórstwa",null,null,2,2,45,15,null,30,null,null,null,null,null,null,null,null,null,null,null,null,null,null,null,null,null,null,null,null,null,null,null,null,null,15,null,30,null,{"$f":"sumaECTS(L192:AM192)","v":2}]
[null,null,null,null,null,null,0,0,null,0,null,null,null,null,null,null,null,null,null,null,null,null,null,null,null,null,null,null,null,null,null,null,null,null,null,null,null,null,null,0]
[null,null,null,null,null,null,0,0,null,0,null,null,null,null,null,null,null,null,null,null,null,null,null,null,null,null,null,null,null,null,null,null,null,null,null,null,null,null,null,0]
["13.","Certyfikacja",null,1,null,1,20,20,null,null,null,null,null,null,null,null,null,null,null,null,null,null,null,null,null,null,null,null,null,null,null,null,null,null,null,20,null,null,null,1]
["14.","Organizacja i zarządzanie energią",null,null,2,1,30,15,null,null,15,null,null,null,null,null,null,null,null,null,null,null,null,null,null,null,null,null,null,null,null,null,null,null,null,15,null,null,15,1]
["15.","Praca przejściowa (technologiczna)",null,null,1,4,30,null,null,null,30,null,null,null,null,null,null,null,null,null,null,null,null,null,null,null,null,null,null,null,null,null,null,null,30,null,null,null,null,4]
[13,"Moduł - Metrologia, strategia i certyfikacja - Certyfikacja opakowań z tworzyw ",null,null,null,null,0,null,null,null,0,null,null,null,null,null,null,null,null,null,null,null,null,null,null,null,null,null,null,null,null,null,null,null,null,null,null,null,null,0]
[null,"Moduł - Metrologia, strategia i certyfikacja - Tworzenie skutecznych strategii ",null,null,null,null,0,null,null,null,0,null,null,null,null,null,null,null,null,null,null,null,null,null,null,null,null,null,null,null,null,null,null,null,null,null,null,null,null,0,{"$f":"SUM(L205:AM205)","v":0}]
[null,"Moduł - Metrologia, strategia i certyfikacja - Metrologia narzędzi przetwórstwa tworzyw ",null,null,null,null,0,null,null,null,0,null,null,null,null,null,null,null,null,null,null,null,null,null,null,null,null,null,null,null,null,null,null,null,null,null,null,null,null,0]
["16.","Seminarium dyplomowe",null,null,2,2,30,null,null,null,30,null,null,null,null,null,null,null,null,null,null,null,null,null,null,null,null,null,null,null,null,null,null,null,15,null,null,null,15,2]
[null,"RAZEM     ",null,{"$f":"SUM(D166:D201)","v":6},{"$f":"SUM(E166:E201)","v":28},{"$f":"SUM(F166:F201)","v":45},635,260,0,195,180,{"$f":"SUM(L166:L201)/2","v":0},0,0,0,0,0,0,0,0,0,0,0,0,0,0,0,{"$f":"SUM(AB166:AB201)","v":90},0,{"$f":"SUM(AD166:AD201)","v":60},0,{"$f":"SUM(AF166:AF201)","v":90},0,{"$f":"SUM(AH166:AH201)","v":75},{"$f":"SUM(AI166:AI201)","v":105},{"$f":"SUM(AJ166:AJ201)","v":80},0,{"$f":"SUM(AL166:AL201)","v":60},{"$f":"SUM(AM166:AM201)","v":75},null,"suma"]
[null,null,null,null,null,null,null,null,null,null,null,0,null,null,null,0,null,null,null,0,null,null,null,0,null,null,null,150,null,null,null,{"$f":"SUM(AF202:AI202)","v":270},null,null,null,{"$f":"SUM(AJ202:AM202)","v":215},null,null,null,null,{"$f":"SUM(AN166:AN201)","v":45}]
["PODSUMOWANIE  ARKUSZA  1+2+3+4",null,null,"egza-mi-nów","zali-czeń","pkt. ECTS","Razem","W","Ć","L ","P / S","sem. I",null,null,null,"sem. II",null,null,null,"sem. III",null,null,null,"sem. IV",null,null,null,"sem. V",null,null,null,"sem. VI",null,null,null,"sem. VII"]
[null,null,null,null,null,null,null,null,null,null,null,"W","Ć","L","P/S","W","Ć","L","P/S","W","Ć","L","P/S","W","Ć","L","P/S","W","Ć","L","P/S","W","Ć","L","P/S","W","Ć","L","P/S"]
[]
[null,null,null,{"$f":"D202+D128+D70+D25","v":18},97,{"$f":"F202+F128+F70+F25","v":210},2300,995,285,750,270,210,75,90,0,180,60,150,0,135,90,90,15,120,60,120,45,{"$f":"SUM(AB30+AB75+AB128+AB202)","v":135},{"$f":"SUM(AC30+AC70+AC128+AC202)","v":0},{"$f":"SUM(AD25+AD70+AD128+AD202)","v":135},{"$f":"SUM(AE25,AE70,AE128+AE202)","v":30},{"$f":"SUM(AF25+AF70+AF128+AF202)","v":90},0,105,105,125,0,60,75,"suma"]
[null,null,null,null,null,null,null,null,null,null,null,{"$f":"SUM(L207:O207)","v":375},null,null,null,{"$f":"SUM(P207:S207)","v":390},null,null,null,{"$f":"SUM(T207:W207)","v":330},null,null,null,{"$f":"SUM(X207:AA207)","v":345},null,null,null,{"$f":"SUM(AB207:AE207)","v":300},null,null,null,{"$f":"SUM(AF207:AI207)","v":300},null,null,null,{"$f":"SUM(AJ207:AM207)","v":260},null,null,null,{"$f":"SUM(L208:AM208)","v":2300}]
[null,null,null,"Liczba:  ",null,null,"egzaminów",null,null,null,null,2,null,null,null,3,null,null,null,3,null,null,null,3,null,null,null,2,null,null,null,3,null,null,null,2,null,null,null,{"$f":"SUM(L209:AM209)","v":18}]
[null,null,null,null,null,null,"zaliczeń",null,null,null,null,12,null,null,null,13,null,null,null,12,null,null,null,17,null,null,null,14,null,null,null,14,null,null,null,15,null,null,null,{"$f":"SUM(L210:AM210)","v":97}]
[null,null,null,null,null,null,"pkt. ECTS",null,null,null,null,30,null,null,null,30,null,null,null,30,null,null,null,30,null,null,null,30,null,null,null,30,null,null,null,30,null,null,null,{"$f":"SUM(L211:AM211)","v":210}]
[]
["UWAGI:",null,null,null,null,null,null,null,null,null,null,null,null,null,null,null,null,null,null,null,null,null,null,null,null,null,null,null,"Obowiązuje od roku akademickiego: 2018/2019"]
[null,"1.","Dla studentów I roku studiów stacjonarnych I stopnia wszystkie formy zajęć dydaktycznych przewidziane w planie studiów są obowiązkowe. Na wyższych latach obowiązkowe są: ćwiczenia audytoryjne i laboratoryjne, "]
[null,null,"lektoraty,  zajęcia: sportowe, terenowe, projektowe, plenerowe i seminaria.",null,null,null,null,null,null,null,null,null,null,null,null,null,null,null,null,null,null,null,null,null,null,null,null,null,"Legenda:"]
[null,"2.","Język obcy do wyboru spośród: 1. Język angielski, 2. Język niemiecki, ",null,null,null,null,null,null,null,null,null,null,null,null,null,null,null,null,null,null,null,null,null,null,null,null,null,"W "," - wykład"]
[null,"3.","Przedmioty humanistyczne do wyboru spośród: semestr I: 1. Psychologia, 2. Filozofia; semestr II: 1. Elementy prawa, 2. Socjologia ogólna, ",null,null,null,null,null,null,null,null,null,null,null,null,null,null,null,null,null,null,null,null,null,null,null,null,null,"Ć "," - ćwiczenia audytoryjne"]
[null,"4.","Wychowanie fizyczne - studenci dokonują wyboru jednej formy zajęć z oferty SWFiSW.",null,null,null,null,null,null,null,null,null,null,null,null,null,null,null,null,null,null,null,null,null,null,null,null,null,"L "," - ćwiczenia laboratoryjne, lektorat języków obcych"]
[null,"5.","Studentów obowiązuje zaliczenie: 1 dzień w tygodniu praktyki zawodowej podczas III sem.  (2pkt. ECTS); 1 dzień w tygodniu praktyki zawodowej podczas IV sem. (2 pkt. ECTS) oraz 6 tygodni praktyki zawodowej po IV sem. (6 pkt. ECTS); 2 dni w tygodniu praktyki zawodowej podczas V sem. (4 pkt. ECTS); 2 dni w tygodniu praktyki zawodowej podczas VI sem. (4 pkt. ECTS) oraz 6 tygodni praktyki zawodowej po VI sem. (6 pkt ECTS); 2 dni w tygodniu praktyki zawodowej podczas VII sem. (4 pkt. ECTS).",null,null,null,null,null,null,null,null,null,null,null,null,null,null,null,null,null,null,null,null,null,null,null,null,null,"P\nS\nT"," - ćwiczenia projektowe\n- seminarium\n- zajęcia terenowe"]
[null,null,null,null,null,null,null,null,null,null,null,null,null,null,null,null,null,null,null,null,null,null,null,null,null,null,null,null,null," - egzamin"]
[]
[]
[null,null,null,null,null,null,null,null,null,null,null,null,null,null,null,null,null,null,null,null,null,null,null,null,null,null,null,"ARKUSZ 4"]
[null,null,null,"PLAN  STUDIÓW  NR  I",null,null,null,null,null,null,null,null,null,null,null,null,null,null,null,null,null,null,null,null,null,null,null,"ZATWIERDZAM"]
["WYDZIAŁ INŻYNIERII MECHANICZNEJ"]
[null,null,null,"PROFIL KSZTAŁCENIA:",null,null,null,null,"PRAKTYCZNY"]
[null,null,null,"POZIOM STUDIÓW:",null,null,null,null,"PIERWSZEGO STOPNIA (3,5-letnie inżynierskie)"]
["UNIWERSYTET TECHNOLOGICZNO-PRZYRODNICZY",null,null,"FORMA STUDIÓW:",null,null,null,null,"STUDIA STACJONARNE",null,null,null,null,null,null,null,null,null,null,null,null,null,null,null,null,null,null,"PROREKTOR"]
["IM. J. i J. ŚNIADECKICH ",null,null,"KIERUNEK:",null,null,null,null,"PRZETWÓRSTWO TWORZYW SZTUCZNYCH",null,null,null,null,null,null,null,null,null,null,null,null,null,null,null,null,null,null,"ds. Dydaktycznych  i  Studenckich"]
["W BYDGOSZCZY",null,null,"SPECJALNOŚĆ:"]
[null,null,null,null,null,null,null,null,"2. NARZĘDZIOWA CAD/CAM"]
[null,null,null,null,null,null,null,null,null,null,null,null,null,null,null,null,null,null,null,null,null,null,null,null,null,null,null,"Bydgoszcz dn. …………………….."]
[]
["Pozycja     planu","NAZWA PRZEDMIOTU",null,"Liczba",null,null,"GODZINY",null,null,null,null,"ROZKŁAD  ZAJĘĆ  w SEMESTRZE"]
[null,null,null,null,null,null,"Razem","w tym",null,null,null,"sem. I",null,null,null,"sem. II",null,null,null,"sem. III",null,null,null,"sem. IV",null,null,null,"sem. V",null,null,null,"sem. VI",null,null,null,"sem. VII"]
[null,null,null,"egza-mi-nów","zali-czeń","pkt. ECTS",null,"W","Ć","L ","P / S","Liczba godzin tygodniowo (semestr I - VII po 15 tygodni)"]
[null,null,null,null,null,null,null,null,null,null,null,"W","Ć","L","P/S","W","Ć","L","P/S","W","Ć","L","P/S","W","Ć","L","P/S","W","Ć","L","P/S","W","Ć","L","P/S","W","Ć","L","P/S"]
[]
["D.2","PRZEDMIOTY SPECJALNOŚCIOWE",null,null,null,null,null,null,null,null,null,null,null,null,null,null,null,null,null,null,null,null,null,null,null,null,null,null,null,null,null,null,null,null,null,null,null,null,null,"suma"]
["1.","Technologie przyrostowe w budowie narzędzi do przetwórstwa tworzyw",null,null,2,2,{"$f":"SUM(H240:K240)","v":30},{"$f":"L240+P240+T240+X240+AB240+AF240+AJ240","v":15},null,{"$f":"N240+R240+V240+Z240+AD240+AH240+AL240","v":15},null,null,null,null,null,null,null,null,null,null,null,null,null,null,null,null,null,15,null,15,null,null,null,null,null,null,null,null,null,{"$f":"sumaECTS(L240:AM240)","v":2}]
[null,null,null,null,null,null,{"$f":"SUM(H241:K241)","v":0},{"$f":"L241+P241+T241+X241+AB241+AF241+AJ241","v":0},null,{"$f":"N241+R241+V241+Z241+AD241+AH241+AL241","v":0},{"$f":"O241+S241+W241+AA241+AE241+AI241+AM241","v":0},null,null,null,null,null,null,null,null,null,null,null,null,null,null,null,null,null,null,null,null,null,null,null,null,null,null,null,null,{"$f":"sumaECTS(L241:AM241)","v":0}]
[null,null,null,null,null,null,0,0,null,0,0,null,null,null,null,null,null,null,null,null,null,null,null,null,null,null,null,null,null,null,null,null,null,null,null,null,null,null,null,0]
["2.","CAD w projektowaniu narzedzi",null,null,2,5,45,null,null,30,15,null,null,null,null,null,null,null,null,null,null,null,null,null,null,null,null,null,null,30,15,null,null,null,null,null,null,null,null,5]
["3.",null,null,null,null,null,0,0,null,0,0,null,null,null,null,null,null,null,null,null,null,null,null,null,null,null,null,null,null,null,null,null,null,null,null,null,null,null,null,0]
[null,null,null,null,null,null,0,0,null,0,0,null,null,null,null,null,null,null,null,null,null,null,null,null,null,null,null,null,null,null,null,null,null,null,null,null,null,null,null,0]
["3.","Materiały stosowane w konstrukcji narzędzi",null,1,1,5,30,15,null,15,null,null,null,null,null,null,null,null,null,null,null,null,null,null,null,null,null,15,null,15,null,null,null,null,null,null,null,null,null,5]
["4.",null,null,null,null,null,0,0,null,0,0,null,null,null,null,null,null,null,null,null,null,null,null,null,null,null,null,null,null,null,null,null,null,null,null,null,null,null,null,0]
["5.",null,null,null,null,null,0,0,null,0,0,null,null,null,null,null,null,null,null,null,null,null,null,null,null,null,null,null,null,null,null,null,null,null,null,null,null,null,null,0]
[null,null,null,null,null,null,0,0,null,0,0,null,null,null,null,null,null,null,null,null,null,null,null,null,null,null,null,null,null,null,null,null,null,null,null,null,null,null,null,0]
["4.","Technologie obróbki metali",null,1,1,5,45,30,null,15,null,null,null,null,null,null,null,null,null,null,null,null,null,null,null,null,null,30,null,15,null,null,null,null,null,null,null,null,null,5]
["5.","Komputerowe wspomaganie projektowania narzędzi",null,null,3,4,60,15,null,30,15,null,null,null,null,null,null,null,null,null,null,null,null,null,null,null,null,null,null,null,null,15,null,30,15,null,null,null,null,4]
["6.","Konstrukcja form wtryskowych",null,1,2,4,75,30,null,30,15,null,null,null,null,null,null,null,null,null,null,null,null,null,null,null,null,null,null,null,null,30,null,30,15,null,null,null,null,4]
["7.","CAM",null,1,2,4,45,15,null,15,15,null,null,null,null,null,null,null,null,null,null,null,null,null,null,null,null,null,null,null,null,15,null,15,15,null,null,null,null,4]
["8.","Technologie wytwarzania form wtryskowych",null,null,2,2,45,30,null,15,null,null,null,null,null,null,null,null,null,null,null,null,null,null,null,null,null,null,null,null,null,30,null,15,null,null,null,null,null,2]
["9.","Konstrukcja głowic wytłaczarskich i form rozdmuchowych",null,1,2,2,60,15,null,30,15,null,null,null,null,null,null,null,null,null,null,null,null,null,null,null,null,null,null,null,null,null,null,null,null,15,null,30,15,2]
["10.","CAM w wytwarzaniu narzędzi",null,null,2,1,30,null,null,15,15,null,null,null,null,null,null,null,null,null,null,null,null,null,null,null,null,null,null,null,null,null,null,null,null,null,null,15,15,1]
["11.","Techniki pomiarowe",null,null,2,1,30,15,null,15,null,null,null,null,null,null,null,null,null,null,null,null,null,null,null,null,null,null,null,null,null,null,null,null,null,15,null,15,null,{"$f":"sumaECTS(L257:AM257)","v":1}]
["12.","Sterowanie maszyn",null,null,2,2,45,15,null,30,null,null,null,null,null,null,null,null,null,null,null,null,null,null,null,null,null,null,null,null,null,null,null,null,null,15,null,30,null,{"$f":"sumaECTS(L258:AM258)","v":2}]
["13.","Zarządzanie projektami",null,1,1,2,35,20,null,null,15,null,null,null,null,null,null,null,null,null,null,null,null,null,null,null,null,null,null,null,null,null,null,null,null,20,null,null,15,2]
["11.",null,null,null,null,null,0,0,null,0,0,null,null,null,null,null,null,null,null,null,null,null,null,null,null,null,null,null,null,null,null,null,null,null,null,null,null,null,null,0]
[null,null,null,null,null,null,0,0,null,0,0,null,null,null,null,null,null,null,null,null,null,null,null,null,null,null,null,null,null,null,null,null,null,null,null,null,null,null,null,0]
[null,null,null,null,null,null,0,0,null,0,0,null,null,null,null,null,null,null,null,null,null,null,null,null,null,null,null,null,null,null,null,null,null,null,null,null,null,null,null,0]
["12.",null,null,null,null,null,0,0,null,0,0,null,null,null,null,null,null,null,null,null,null,null,null,null,null,null,null,null,null,null,null,null,null,null,null,null,null,null,null,0]
["14.","Praca przejściowa (konstrukcyjna)",null,null,1,4,30,null,null,null,30,null,null,null,null,null,null,null,null,null,null,null,null,null,null,null,null,null,null,null,null,null,null,null,30,null,null,null,null,4]
[null,null,null,null,null,null,0,null,null,null,0,null,null,null,null,null,null,null,null,null,null,null,null,null,null,null,null,null,null,null,null,null,null,null,null,null,null,null,null,0]
[null,null,null,null,null,null,0,null,null,null,0,null,null,null,null,null,null,null,null,null,null,null,null,null,null,null,null,null,null,null,null,null,null,null,null,null,null,null,null,0]
["15.","Moduł zarzadzanie - Zarządzanie środowiskiem i ekologią",null,null,null,null,0,null,null,null,0,null,null,null,null,null,null,null,null,null,null,null,null,null,null,null,null,null,null,null,null,null,null,null,null,null,null,null,null,0]
[null,"Moduł zarzadzanie - Zarządzanie projektami",null,null,null,null,0,null,null,null,0,null,null,null,null,null,null,null,null,null,null,null,null,null,null,null,null,null,null,null,null,null,null,null,null,null,null,null,null,0]
["15.","Seminarium dyplomowe",null,null,2,2,30,null,null,null,30,null,null,null,null,null,null,null,null,null,null,null,null,null,null,null,null,null,null,null,null,null,null,null,15,null,null,null,15,2]
[null,"RAZEM     ",null,{"$f":"SUM(D240:D269)","v":6},{"$f":"SUM(E240:E269)","v":27},{"$f":"SUM(F240:F269)","v":45},635,215,0,255,165,{"$f":"SUM(L240:L269)","v":0},0,0,0,0,0,0,0,0,0,0,0,0,0,0,0,{"$f":"SUM(AB240:AB269)","v":60},{"$f":"SUM(AC240:AC269)/2","v":0},{"$f":"SUM(AD240:AD269)","v":75},{"$f":"SUM(AE240:AE269)","v":15},{"$f":"SUM(AF240:AF269)","v":90},0,{"$f":"SUM(AH240:AH269)","v":90},{"$f":"SUM(AI240:AI269)","v":90},{"$f":"SUM(AJ240:AJ269)","v":65},{"$f":"SUM(AK240:AK269)/2","v":0},{"$f":"SUM(AL240:AL269)","v":90},{"$f":"SUM(AM240:AM269)","v":60},null,"suma"]
[null,null,null,null,null,null,null,null,null,null,null,{"$f":"SUM(L270:O270)","v":0},null,null,null,{"$f":"SUM(P270:S270)","v":0},null,null,null,{"$f":"SUM(T270:W270)","v":0},null,null,null,{"$f":"SUM(X270:AA270)","v":0},null,null,null,{"$f":"SUM(AB270:AE270)","v":150},null,null,null,{"$f":"SUM(AF270:AI270)","v":270},null,null,null,{"$f":"SUM(AJ270:AM270)","v":215},null,null,null,null,{"$f":"SUM(AN240:AN269)","v":45}]
["PODSUMOWANIE  ARKUSZA  1+2+3+5",null,null,"egza-mi-nów","zali-czeń","pkt. ECTS","Razem","W","Ć","L ","P / S","sem. I",null,null,null,"sem. II",null,null,null,"sem. III",null,null,null,"sem. IV",null,null,null,"sem. V",null,null,null,"sem. VI",null,null,null,"sem. VII"]
[null,null,null,null,null,null,null,null,null,null,null,"W","Ć","L","P/S","W","Ć","L","P/S","W","Ć","L","P/S","W","Ć","L","P/S","W","Ć","L","P/S","W","Ć","L","P/S","W","Ć","L","P/S"]
[null,null,null,null,null,null,null,null,null,null,null,null,null,null,null,null,null,null,null,null,null,null,null,null,null,null,null,null,null,null,null,null,null,null,null,null,null,null,null,"suma"]
[null,null,null,{"$f":"D270+D128+D70+D25","v":18},{"$f":"E270+E128+E70+E25","v":96},210,2300,950,285,810,255,210,75,90,0,180,60,150,0,135,90,90,15,120,60,120,45,{"$f":"SUM(AB25+AB70+AB128+AB270)","v":105},0,150,45,90,0,120,90,110,0,90,60]
[null,null,null,null,null,null,null,null,null,null,null,{"$f":"SUM(L275:O275)","v":375},null,null,null,{"$f":"SUM(P275:S275)","v":390},null,null,null,{"$f":"SUM(T275:W275)","v":330},null,null,null,{"$f":"SUM(X275:AA275)","v":345},null,null,null,{"$f":"SUM(AB275:AE275)","v":300},null,null,null,{"$f":"SUM(AF275:AI275)","v":300},null,null,null,{"$f":"SUM(AJ275:AM275)","v":260},null,null,null,{"$f":"SUM(L276:AM276)","v":2300}]
[null,null,null,"Liczba:  ",null,null,"egzaminów",null,null,null,null,2,null,null,null,3,null,null,null,3,null,null,null,3,null,null,null,2,null,null,null,3,null,null,null,2,null,null,null,{"$f":"SUM(L277:AM277)","v":18}]
[null,null,null,null,null,null,"zaliczeń",null,null,null,null,12,null,null,null,13,null,null,null,12,null,null,null,17,null,null,null,14,null,null,null,13,null,null,null,15,null,null,null,96]
[null,null,null,null,null,null,"pkt. ECTS",null,null,null,null,30,null,null,null,30,null,null,null,30,null,null,null,30,null,null,null,30,null,null,null,30,null,null,null,30,null,null,null,210]
[]
["UWAGI:",null,null,null,null,null,null,null,null,null,null,null,null,null,null,null,null,null,null,null,null,null,null,null,null,null,null,null,"Obowiązuje od roku akademickiego: 2018/2019"]
[null,"1.","Dla studentów I roku studiów stacjonarnych I stopnia wszystkie formy zajęć dydaktycznych przewidziane w planie studiów są obowiązkowe. Na wyższych latach obowiązkowe są: ćwiczenia audytoryjne i laboratoryjne, "]
[null,null,"lektoraty,  zajęcia: sportowe, terenowe, projektowe, plenerowe i seminaria.",null,null,null,null,null,null,null,null,null,null,null,null,null,null,null,null,null,null,null,null,null,null,null,null,null,"Legenda:"]
[null,"2.","Język obcy do wyboru spośród: 1. Język angielski, 2. Język niemiecki, ",null,null,null,null,null,null,null,null,null,null,null,null,null,null,null,null,null,null,null,null,null,null,null,null,null,"W "," - wykład"]
[null,"3.","Przedmioty humanistyczne do wyboru spośród: semestr I: 1. Psychologia, 2. Filozofia; semestr II: 1. Elementy prawa, 2. Socjologia ogólna, ",null,null,null,null,null,null,null,null,null,null,null,null,null,null,null,null,null,null,null,null,null,null,null,null,null,"Ć "," - ćwiczenia audytoryjne"]
[null,"4.","Wychowanie fizyczne - studenci dokonują wyboru jednej formy zajęć z oferty SWFiSW.",null,null,null,null,null,null,null,null,null,null,null,null,null,null,null,null,null,null,null,null,null,null,null,null,null,"L "," - ćwiczenia laboratoryjne, lektorat języków obcych"]
[null,"5.","Studentów obowiązuje zaliczenie: 1 dzień w tygodniu praktyki zawodowej podczas III sem.  (2pkt. ECTS); 1 dzień w tygodniu praktyki zawodowej podczas IV sem. (2 pkt. ECTS) oraz 6 tygodni praktyki zawodowej po IV sem. (6 pkt. ECTS); 2 dni w tygodniu praktyki zawodowej podczas V sem. (4 pkt. ECTS); 2 dni w tygodniu praktyki zawodowej podczas VI sem. (4 pkt. ECTS) oraz 6 tygodni praktyki zawodowej po VI sem. (6 pkt ECTS); 2 dni w tygodniu praktyki zawodowej podczas VII sem. (4 pkt. ECTS).",null,null,null,null,null,null,null,null,null,null,null,null,null,null,null,null,null,null,null,null,null,null,null,null,null,"P\nS\nT"," - ćwiczenia projektowe\n- seminarium\n- zajęcia terenowe"]
[null,null,null,null,null,null,null,null,null,null,null,null,null,null,null,null,null,null,null,null,null,null,null,null,null,null,null,null,null," - egzamin"]
[]
[]
[null,null,null,null,null,null,null,null,null,null,null,null,null,null,null,null,null,null,null,null,null,null,null,null,null,null,null,"ARKUSZ 5"]

{"sheet":"punkty ECTS","index":1,"n_rows":142,"n_cols":7,"rows_kept":142,"cut":false,"hidden":false,"merged":[[100,2,100,5],[112,2,112,5],[124,2,124,5],[138,2,138,5],[22,2,22,5],[34,2,34,5],[46,2,46,5],[60,2,60,5],[72,2,72,5],[85,2,85,5]]}
[null,"Wydział:","INŻYNIERII MECHANICZNEJ"]
[null,"PROFIL KSZTAŁCENIA:","PROFIL PRAKTYCZNY"]
[null,"POZIOM STUDIÓW:","STUDIA PIERWSZEGO STOPNIA (3,5-letnie inżynierskie)"]
[null,"FORMA STUDIÓW:","STUDIA STACJONARNE"]
[null,"KIERUNEK:","PRZETWÓRSTWO TWORZYW SZTUCZNYCH"]
[null,"SPECJALNOŚĆ:","1. TECHNOLOGICZNA"]
[null,null,"2. NARZEDZIOWA CAD/CAM"]
[null,"Plan nr","I"]
[null,"Obowiązuje od roku akademickiego: ","2018/2019"]
[]
[null,"szkolenie BHP - 4 godz."]
["Lp.","SEMESTR I","w","ćw","l","p","ECTS"]
["1.","Przedmioty humanistyczne do wyboru3",30,null,null,null,2]
["2.","Technologia informacyjna",15,null,15,null,3]
["3.","BHP i ergonomia",15,null,null,null,2]
["4.","Matematyka inżynierska ",30,45,null,null,6]
["5.","Fizyka",30,30,null,null,5]
["6.","Materiały inżynierskie z elementami chemii",45,null,30,null,6]
["7.","Podstawy obróbki materiałów",null,null,15,null,1]
["8.","Podstawy maszynoznawstwa",15,null,null,null,2]
["9.","Grafika inżynierska ",30,null,30,null,3]
[null,"suma",{"$f":"SUM(C13:C21)","v":210},{"$f":"SUM(D13:D21)","v":75},{"$f":"SUM(E13:E21)","v":90},{"$f":"SUM(F13:F21)","v":0},{"$f":"SUM(G13:G21)","v":30}]
[null,null,{"$f":"SUM(C22:F22)","v":375}]
["Lp.","SEMESTR II","w","ćw","l","p","ECTS"]
["1.","Przedmioty humanistyczne do wyboru3",15,null,null,null,2]
["2.","Matematyka inżynierska",30,30,null,null,5]
["3.","Fizyka",null,null,15,null,2]
["4.","Mechanika techniczna ",30,30,15,null,6]
["5.","Grafika inżynierska ",null,null,30,null,2]
["6.","Metaloznawstwo ",30,null,30,null,4]
["7.","Elektrotechnika i elektronika",15,null,15,null,2]
["8.","Tworzywa polimerowe",30,null,30,null,4]
["9.","Obróbka cieplna i plastyczna",30,null,15,null,3]
[null,"suma",{"$f":"SUM(C25:C33)","v":180},{"$f":"SUM(D25:D33)","v":60},{"$f":"SUM(E25:E33)","v":150},{"$f":"SUM(F25:F33)","v":0},{"$f":"SUM(G25:G33)","v":30}]
[null,null,{"$f":"SUM(C34:F34)","v":390}]
["Lp.","SEMESTR III","w","ćw","l","p","ECTS"]
["1.","Język obcy2",null,null,30,null,1]
["2.","Wychowanie fizyczne4",null,30,null,null,0]
["3.","Statystyka inżynierska",15,15,null,null,3]
["4.","Podstawy konstrukcji maszyn",30,30,null,null,6]
["5.","Mechanika płynów",30,15,15,null,6]
["6.","Technologie przetwórstwa tworzyw",30,null,null,null,3]
["7.","CAD",null,null,30,15,4]
["8.","Obróbka skrawaniem",30,null,15,null,5]
["9.","Praktyka zawodowa (1 DZIEŃ W TYGODNIU)5",null,null,null,120,2]
[null,"suma",{"$f":"SUM(C37:C45)","v":135},{"$f":"SUM(D37:D45)","v":90},{"$f":"SUM(E37:E45)","v":90},{"$f":"SUM(F37:F44)","v":15},{"$f":"SUM(G37:G45)","v":30}]
[null,null,{"$f":"SUM(C46:F46)","v":330}]
["Lp.","SEMESTR IV","w","ćw","l","p","ECTS"]
["1.","Język obcy2",null,null,30,null,1]
["2.","Wychowanie fizyczne4",null,30,null,null,0]
["3.","Podstawy konstrukcji maszyn",15,null,null,15,3]
["4.","Termodynamika techniczna",15,15,15,null,4]
["5.","Technologie przetwórstwa tworzyw",15,15,30,null,4]
["6.","Odlewnictwo i spawalnictwo",30,null,15,null,3]
["7.","Metodyka Design Thinking",null,null,15,15,2]
["8.","Systemy kontroli jakości",30,null,null,15,3]
["9.","Metrologia",15,null,15,null,2]
["10.","Praktyka (6 TYGODNI)5",null,null,null,null,6]
["11.","Praktyka zawodowa (1 DZIEŃ W TYGODNIU)5",null,null,null,120,2]
[null,"suma",{"$f":"SUM(C49:C59)","v":120},{"$f":"SUM(D49:D59)","v":60},{"$f":"SUM(E49:E59)","v":120},{"$f":"SUM(F49:F58)","v":45},{"$f":"SUM(G49:G59)","v":30}]
[null,null,{"$f":"SUM(C60:F60)","v":345}]
["Lp.","SEMESTR V sp.1","w","ćw","l","p","ECTS"]
["1.","Język obcy3",null,null,30,null,1]
["2.","Zaawansowane techniki badań materiałów",15,null,15,null,3]
["3.","Projektowanie i konstrukcja wytworów z tworzyw polimerowych",15,null,null,30,3]
["4.","Metody elementów skończonych",15,null,30,null,3]
["5.","Technologie przyrostowe w produkcji wytworów z tworzyw",15,null,15,null,3]
["6.","Maszyny i urządzenia do przetwórstwa tworzyw",30,null,15,null,6]
["7.","Technologia wtryskiwnia",30,null,15,null,5]
["8.","Recykling materiałów i gospodarka odpadami",15,null,15,null,3]
["9.","Praktyka zawodowa (2 DNI W TYGODNIU)5",null,null,null,240,3]
[null,"suma",{"$f":"SUM(C63:C71)","v":135},{"$f":"SUM(D63:D71)","v":0},{"$f":"SUM(E63:E71)","v":135},{"$f":"SUM(F63:F70)","v":30},{"$f":"SUM(G63:G71)","v":30}]
[null,null,{"$f":"SUM(C72:F72)","v":300}]
["Lp.","SEMESTR VI sp. 1","w","ćw","l","p","ECTS"]
["1.","Język obcy2",null,null,30,null,2]
["2.","Planowanie i utrzymanie produkcji",15,null,null,15,2]
["3.","Komputerowe metody wspomagania procesów przetwórstwa tworzyw",15,null,30,15,4]
["4.","Narzędzia do przetwórstwa tworzyw",30,null,15,30,4]
["5.","Metody modyfikacji tworzyw polimerowych",15,null,15,null,2]
["6.","Reologia stopów polimerowych",15,null,15,null,2]
["7.","Praca przejściowa (technologiczna)",null,null,null,30,4]
["8.","Seminarium dyplomowe",null,null,null,15,1]
["9.","Praktyka wakacyjna (6 TYGODNI)5",null,null,null,null,6]
["10.","Praktyka zawodowa (2 DNI W TYGODNIU)5",null,null,null,240,3]
[null,"suma",{"$f":"SUM(C75:C84)","v":90},{"$f":"SUM(D75:D84)","v":0},{"$f":"SUM(E75:E84)","v":105},{"$f":"SUM(F75:F83)","v":105},{"$f":"SUM(G75:G84)","v":30}]
[null,null,{"$f":"SUM(C85:F85)","v":300}]
["Lp.","SEMESTR VII sp. 1","w","ćw","l","p","ECTS"]
["1.","Ochrona własności intelektualnej",15,null,null,null,1]
["2.","Podstawy przedsiębiorczości ",15,null,null,null,1]
["3.","Komunikacja społeczna",15,null,null,null,1]
["4.","Narzędzia do przetwórstwa tworzyw",null,null,null,30,1]
["5.","Inżynieria odwrotna",15,null,15,null,1]
["6.","Eksploatacja maszyn i narzędzi",15,null,15,15,2]
["7.","Automatyzacja i robotyzacja procesów przetwórsta",15,null,30,null,2]
["8.","Certyfikacja",20,null,null,null,1]
["9.","Organizacja i zarządzanie energią",15,null,null,15,1]
["10.","Seminarium dyplomowe",null,null,null,15,1]
["11.","Przygotowanie i złożenie pracy dyplomowej oraz przygotowanie do egzaminu dyplomowego",null,null,null,null,15]
["12.","Praktyka zawodowa (2 DNI W TYGODNIU)5",null,null,null,240,3]
[null,"suma",{"$f":"SUM(C88:C99)","v":125},{"$f":"SUM(D88:D99)","v":0},{"$f":"SUM(E88:E99)","v":60},{"$f":"SUM(F88:F98)","v":75},{"$f":"SUM(G88:G99)","v":30}]
[null,null,{"$f":"SUM(C100:F100)","v":260}]
["Lp.","SEMESTR V sp. 2","w","ćw","l","p","ECTS"]
["1.","Język obcy2",null,null,30,null,1]
["2.","Zaawansowane techniki badań materiałów",15,null,15,null,3]
["3.","Projektowanie i konstrukcja wytworów z tworzyw polimerowych",15,null,null,30,3]
["4.","Metody elementów skończonych",15,null,30,null,3]
["5.","Technologie przyrostowe w budowie narzędzi do przetwórstwa tworzyw",15,null,15,null,2]
["6.","CAD w projektowaniu narzędzi ",null,null,30,15,5]
["7.","Materiały stosowane do konstrukcji narzędzi ",15,null,15,null,5]
["8.","Technologie obróbki metali",30,null,15,null,5]
["9.","Praktyka zawodowa (2 DNI W TYGODNIU)5",null,null,null,240,3]
[null,"suma",{"$f":"SUM(C103:C111)","v":105},{"$f":"SUM(D103:D111)","v":0},{"$f":"SUM(E103:E111)","v":150},{"$f":"SUM(F103:F110)","v":45},{"$f":"SUM(G103:G111)","v":30}]
[null,null,{"$f":"SUM(C112:F112)","v":300}]
["Lp.","SEMESTR VI sp. 2","w","ćw","l","p","ECTS"]
["1.","Język obcy2",null,null,30,null,2]
["2.","Komputerowe wspomaganie projektowania narzędzi",15,null,30,15,4]
["3.","Konstrukcja form wtryskowych",30,null,30,15,4]
["4.","CAM",15,null,15,15,4]
["5.","Technologie wytwarzania form wtryskowych",30,null,15,null,2]
["6.","Praca przejściowa (konstrukcyjna)",null,null,null,30,4]
["7.","Seminarium dyplomowe",null,null,null,15,1]
["8.","Praktyka wakacyjna (6 TYGODNI)5",null,null,null,null,6]
["9.","Praktyka zawodowa (2 DNI W TYGODNIU)5",null,null,null,240,3]
[null,"suma",{"$f":"SUM(C115:C123)","v":90},{"$f":"SUM(D115:D123)","v":0},{"$f":"SUM(E115:E123)","v":120},{"$f":"SUM(F115:F122)","v":90},{"$f":"SUM(G115:G123)","v":30}]
[null,null,{"$f":"SUM(C124:F124)","v":300}]
["Lp.","SEMESTR VII sp. 2","w","ćw","l","p","ECTS"]
["1.","Ochrona własności intelektualnej",15,null,null,null,1]
["2.","Podstawy przedsiębiorczości ",15,null,null,null,1]
["3.","Komunikacja społeczna",15,null,null,null,1]
["4.","Konstrukcja głowic wytłaczarskich form rozdmuchowych",15,null,30,15,2]
["5.","CAM w wytwarzaniu narzedzi ",null,null,15,15,1]
["6.","Techniki pomiarowe",15,null,15,null,1]
["7.","Sterowanie maszyn",15,null,30,null,2]
["8.","Zarządzanie projektami",20,null,null,15,2]
["9.","Seminarium dyplomowe",null,null,null,15,1]
["10.","Przygotowanie i złożenie pracy dyplomowej oraz przygotowanie do egzaminu dyplomowego",null,null,null,null,15]
["11.","Praktyka zawodowa (2 DNI W TYGODNIU)5",null,null,null,240,3]
[null,"suma",{"$f":"SUM(C127:C137)","v":110},{"$f":"SUM(D127:D137)","v":0},{"$f":"SUM(E127:E137)","v":90},{"$f":"SUM(F127:F136)","v":60},{"$f":"SUM(G127:G137)","v":30}]
[null,null,{"$f":"SUM(C138:F138)","v":260}]
[]
[null,null,"suma",{"$f":"SUM(C23+C35+C47+C61+C73+C86+C101)","v":2300}]
[null,null,null,{"$f":"SUM(C23+C35+C47+C61+C113+C125+C139)","v":2300}]

{"sheet":"analiza","index":2,"n_rows":51,"n_cols":10,"rows_kept":51,"cut":false,"hidden":false,"merged":[[10,1,10,3],[10,4,10,9],[0,0,0,9],[1,0,1,9],[2,1,2,9],[3,1,3,3],[3,4,3,9],[4,1,4,3],[4,4,4,9],[5,1,6,3],[7,1,7,3],[8,1,8,3],[9,1,9,3],[9,4,9,9],[20,1,20,4],[11,1,11,3],[11,5,11,8],[12,1,12,9],[13,1,14,4],[13,5,13,6],[13,7,14,7],[13,8,13,9],[15,1,15,4],[16,2,16,4],[17,2,17,4],[18,2,18,4],[19,1,19,4],[35,1,35,9],[21,1,21,4],[22,1,22,4],[23,1,23,4],[24,1,24,4],[25,1,25,9],[26,1,26,4],[29,1,29,4],[30,1,30,9],[31,1,31,4],[32,1,32,9],[33,1,33,4],[36,1,36,7],[36,8,36,9],[37,1,37,7],[37,8,37,9],[45,1,45,4],[45,5,45,9],[50,5,50,8],[46,1,46,4],[46,5,46,9],[47,1,47,4],[48,1,48,4],[48,5,48,8],[49,5,49,8]]}
["ANALIZA ZGODNOŚCI  PLANU STUDIÓW "]
["Z WYTYCZNYMI  DO PROJEKTOWANIA I MODYFIKACJI PROGRAMÓW STUDIÓW W UTP"]
[]
[null,"Jednostka prowadząca kierunek studiów",null,null,"Wydział Inżynierii Mechanicznej"]
[null,"Nazwa kierunku studiów",null,null,"Przetwórstwo Tworzyw Sztucznych"]
[null,"Specjalność",null,null,"1. Technologiczna"]
[null,null,null,null,"2. Narzędziowa CAD/CAM"]
[null,"Rok akademicki, \nod którego obowiązuje plan studiów",null,null,"2018/2019"]
[null,"Numer planu studiów",null,null,"I"]
[null,"Forma studiów",null,null,"studia stacjonarne"]
[null,"Poziom studiów",null,null,"studia pierwszego stopnia (3,5-letnie inżynierskie)"]
[null,"OGÓLNA LICZBA GODZIN ",null,null,2300,"OGÓLNA LICZBA PKT. ECTS",null,null,null,210]
[null,"B I L A N S   G O D Z I N   I   P U N K T Ó W   E C T S 1 "]
[null,"Przedmiot/moduł",null,null,null,"Godziny",null,"Pozycje planu","Punkty ECTS"]
[null,null,null,null,null,"Liczba ","%",null,"Liczba ","%"]
[null,"Zajęcia z obszaru nauk humanistycznych i nauk społecznych łącznie: ",null,null,null,{"$f":"SUM(F17:F19)","v":105},{"$f":"SUM(G17:G19)","v":4.5652173913043478E-2},null,{"$f":"SUM(I17:I19)","v":9},{"$f":"SUM(J17:J19)","v":4.2857142857142858E-2}]
[null,"1.","w tym w zakresie ochrony własności intelektualnej i/lub bezpieczeństwa i higieny pracy 2",null,null,30,{"$f":"F17/E12","v":1.3043478260869565E-2},"A.5; A.6",3,{"$f":"I17/J12","v":1.4285714285714285E-2}]
[null,"2.","w tym w zakresie podstaw przedsiębiorczości i uzyskiwania  tzw. kompetencji miękkich  2",null,null,30,{"$f":"F18/E12","v":1.3043478260869565E-2},"A.7; A.8",2,{"$f":"I18/J12","v":9.5238095238095247E-3}]
[null,"3.","w tym inne zajęcia z zakresu nauk humanistycznych i nauk społecznych, nieujęte w pkt 1 i 2",null,null,45,{"$f":"F19/E12","v":1.9565217391304349E-2},"A.2",4,{"$f":"I19/J12","v":1.9047619047619049E-2}]
[null,"Zajęcia z języków obcych ",null,null,null,120,{"$f":"F20/E12","v":5.2173913043478258E-2},"A.1",5,{"$f":"I20/J12","v":2.3809523809523808E-2}]
[null,"Zajęcia z wychowania fizycznego",null,null,null,60,{"$f":"F21/E12","v":2.6086956521739129E-2},"A.3","x","x"]
[null,"Zajęcia z technologii informacyjnych  2",null,null,null,30,{"$f":"F22/E12","v":1.3043478260869565E-2},"A.4",3,{"$f":"I22/J12","v":1.4285714285714285E-2}]
[null,"Seminarium dyplomowe",null,null,null,30,{"$f":"F23/E12","v":1.3043478260869565E-2},"D1.16; D2.15",2,{"$f":"I23/J12","v":9.5238095238095247E-3}]
[null,"Praktyka zawodowa 3",null,null,null,"x","x","C.18",25,{"$f":"I24/J12","v":0.11904761904761904}]
[null,"Przygotowanie i złożenie pracy dyplomowej oraz przygotowanie do egzaminu dyplomowego ",null,null,null,"x","x","C.19",15,{"$f":"I25/J12","v":7.1428571428571425E-2}]
[]
[null,"Zajęcia do wyboru (co najmniej 30% ECTS)",null,null,null,860,{"$f":"F27/E12","v":0.37391304347826088},"A.1; A.2; A.3; C.18; C.19; D.1; D.2",94,{"$f":"I27/J12","v":0.44761904761904764}]
[]
[]
[null,"Zajęcia wymagające bezpośredniego udziału nauczyciela akademickiego ",null,null,null,"x","x",null,126,{"$f":"I30/J12","v":0.6}]
[]
[null,"Zajęcia powiązane z prowadzonymi badaniami naukowymi w dziedzeninie nauki / sztuki związanej z kierunkiem studiów służące zdobywaniu pogłębionej wiedzy i umiejętności prowadzenia badań naukowych (ponad 50% ogólnej liczby pkt. ECTS) 4 ",null,null,null,"x","x",null,"x","x"]
[]
[null,"Zajęcia powiązane z praktycznym przygotowaniem zawodowym służące zdobywaniu umiejętności praktycznych i kompetencji społecznych,  prowadzone w warunkach właściwych dla danego zakresu działalności zawodowej, w sposób umożliwiający wykonywanie określonych czynności praktycznych i przez osoby, z których większość posiada doświadczenie zawodowe zdobyte poza uczelnią odpowiadające zakresowi tych zajęć \n(ponad 50% ogólnej liczby pkt. ECTS) 5",null,null,null,1350,{"$f":"F34/E12","v":0.58695652173913049},null,126,{"$f":"I34/J12","v":0.6}]
[]
[null,"Procentowy udział liczby punktów ECTS dla obszarów kształcenia w programie studiów \ndla kierunków przyporządkowanych do więcej niż jednego obszaru kształcenia "]
[null,"1. obszar kształcenia w zakresie nauk technicznych",null,null,null,null,null,null,1]
[null,"ŁĄCZNIE: ",null,null,null,null,null,null,"100% pkt. ECTS"]
[]
[]
[]
[]
[]
[]
[null,"1 w ogólnej liczbie godzin i punktów ECTS przewidzianych w planie studiów"]
[null,"2  niewymagane dla studiów II stopnia",null,null,null,"……………………………………………"]
[null,"3 niewymagane na studiach II stopnia o profilu ogólnoakademickim ",null,null,null,"pieczątka i podpis kierownika samodzielnej jednostki"]
[null,"4dotyczy jedynie studiów o profilu ogólnoakademickim, wymagana realizacja zajęć powiązanych z prowadzonymi badaniami  naukowymi w dziedzinie wyszczególnionej w opisie efektów kształcenia w wymiarze ponad 50% ogólnej liczby pkt. ECTS (wymagane dostosowanie programów prowadzonych kierunków/ poziomów studiów zgodnie z terminem określonym w pkt VII.5 wytycznych Senatu)"]
[null,"5dotyczy jedynie studiów o profilu praktycznym, wymagana realizacja zajęć powiązanych z praktycznym przygotowaniem zawodowym w wymiarze ponad 50% ogólnej liczby pkt. ECTS (wymagane dostosowanie programów prowadzonych kierunków /poziomów studiów zgodnie z terminem określonym w pkt VII.5 wytycznych Senatu)",null,null,null,"ZATWIERDZAM"]
[null,null,null,null,null,"………………………………………………………"]
[null,null,null,null,null,"Prorektor ds. Dydaktycznych i Studenckich"]